Department family,Entity,Date,Expense type,Expense area,Supplier,Transaction number,Amount
Department of Health,Leicestershire Partnership NHS Trust,01/05/24,Lease Rents (IFRS16),"St Peters Health Center (Part 1st and 2nd floors) (P66, LPT)",LEICESTER LIFT CO,LEP1-SI1595,35795.01
Department of Health,Leicestershire Partnership NHS Trust,01/05/24,Payroll Deductions -Salary Sacrifice Cars Scheme,Balance Sheet Collection,TUSKER,91344,61203.84
Department of Health,Leicestershire Partnership NHS Trust,01/05/24,Legal Fees,Chief Executives Office,CARE QUALITY COMM,43529727,219794.00
Department of Health,Leicestershire Partnership NHS Trust,01/05/24,Healthcare Services / Recharges from Non-NHS Bodies,Adult Eating Disorder Collaborative,PRIORY GROUP,301APR24LEC,72761.83
Department of Health,Leicestershire Partnership NHS Trust,02/05/24,External Data Processing / Storage,Records & information Governance,L&R STORAGE,CV582,48424.83
Department of Health,Leicestershire Partnership NHS Trust,02/05/24,External Data Processing / Storage,Records & information Governance,L&R STORAGE,CV584,59157.54
Department of Health,Leicestershire Partnership NHS Trust,02/05/24,Computer Software,HR Employment Services,SOFTCAT PLC,INVUK1292205,241507.20
Department of Health,Leicestershire Partnership NHS Trust,02/05/24,External Consultancy Fees,Finance Department,CUSHMAN & WAKEFIELD DEB. TIE LEU. LTD,GB3002-CI-24-04710,28500.00
Department of Health,Leicestershire Partnership NHS Trust,02/05/24,Lease Rents (IFRS16),"Syston Health Centre (New Building) (P127, LPT)",PHIP (5) LIMITED,LINV554118,43297.50
Department of Health,Leicestershire Partnership NHS Trust,02/05/24,Legal Fees,Chief Executives Office,BROWNE JACOBSON LLP,1060416,58836.00
Department of Health,Leicestershire Partnership NHS Trust,03/05/24,Catering - Patient - Food,"Bradgate Unit (including Glenvale day Unit) (P7, LPT)",APETITO LTD,W/C290424,35972.64
Department of Health,Leicestershire Partnership NHS Trust,03/05/24,Catering - Patient - Food,"Coalville Community Hospital (P138, LPT)",APETITO LTD,W/C290424,1552.97
Department of Health,Leicestershire Partnership NHS Trust,03/05/24,Medical Gases,"Coalville Community Hospital (P138, LPT)",APETITO LTD,W/C290424,-20.40
Department of Health,Leicestershire Partnership NHS Trust,03/05/24,Catering - Patient - Food,"Evington Centre (P6, LPT)",APETITO LTD,W/C290424,19602.56
Department of Health,Leicestershire Partnership NHS Trust,03/05/24,Catering - Patient - Food,"Hinckley and Bosworth Community Hospital (Sunnyside) (P133, LPT)",APETITO LTD,W/C290424,1789.48
Department of Health,Leicestershire Partnership NHS Trust,03/05/24,Catering - Patient - Food,"Loughborough Hospital (P136, LPT)",APETITO LTD,W/C290424,15640.00
Department of Health,Leicestershire Partnership NHS Trust,03/05/24,Catering - Patient - Food,"Rutland Memorial Hospital (P134, LPT)",APETITO LTD,W/C290424,7063.41
Department of Health,Leicestershire Partnership NHS Trust,03/05/24,Catering - Patient - Food,"Stewart House (P61, LPT)",APETITO LTD,W/C290424,3822.06
Department of Health,Leicestershire Partnership NHS Trust,03/05/24,Catering - Patient - Food,The Beacon,APETITO LTD,W/C290424,3695.75
Department of Health,Leicestershire Partnership NHS Trust,03/05/24,Catering - Patient - Food,"The Willows - Cordelia Close (P22, LPT)",APETITO LTD,W/C290424,15312.06
Department of Health,Leicestershire Partnership NHS Trust,03/05/24,Healthcare Services / Recharges from Non-NHS Bodies,CMS Reserves,SPIRIT DIGITAL LTD,SIN240405SDI00093,59400.00
Department of Health,Leicestershire Partnership NHS Trust,07/05/24,HR / Payroll Services,HR Employment Services,LINCOLNSHIRE PART NHSFT(RP7),L0001322,34400.00
Department of Health,Leicestershire Partnership NHS Trust,07/05/24,Unitary Payment,"The Agnes Unit (AKA Assessment and Treatment Centre) (P85, LPT)",ARDEN PARTNERSHIP (LEICESTER),SI0148,151527.62
Department of Health,Leicestershire Partnership NHS Trust,07/05/24,Crs_NHS_LT1y -Resus Inventory Supplied.,Balance Sheet Collection,SUPPLY CHAIN CO LTD,1125028513,40640.91
Department of Health,Leicestershire Partnership NHS Trust,07/05/24,Drugs,Adult City Drugs,POLAR SPEED THERMOLOGISTICS,0001233112,13766.13
Department of Health,Leicestershire Partnership NHS Trust,07/05/24,Drugs,Adult County Drugs,POLAR SPEED THERMOLOGISTICS,0001233112,20649.19
Department of Health,Leicestershire Partnership NHS Trust,08/05/24,Computer License  Fees,Finance Department,VERSION 1,INVSOL021868,39367.20
Department of Health,Leicestershire Partnership NHS Trust,08/05/24,WIP Project Not in BS - Buildings excl Dwellings,Work in Progress,O.HEAP & SON (DERBY) LTD,SINB65920,46022.40
Department of Health,Leicestershire Partnership NHS Trust,08/05/24,WIP Project Not in BS - Buildings excl Dwellings,Work in Progress,TILBURY DOUGLAS CONSTRUCTION LTD,24050013,214767.92
Department of Health,Leicestershire Partnership NHS Trust,08/05/24,Healthcare Services / Recharges from Non-NHS Bodies,Marie Curie Service,MARIE CURIE CANCER CARE,20034,32538.51
Department of Health,Leicestershire Partnership NHS Trust,09/05/24,WIP Project Not in BS - Buildings excl Dwellings,Work in Progress,TILBURY DOUGLAS CONSTRUCTION LTD,24050074,68032.28
Department of Health,Leicestershire Partnership NHS Trust,09/05/24,WIP Project Not in BS - Buildings excl Dwellings,Work in Progress,TILBURY DOUGLAS CONSTRUCTION LTD,24050079,67881.04
Department of Health,Leicestershire Partnership NHS Trust,09/05/24,WIP Project Not in BS - Buildings excl Dwellings,Work in Progress,TILBURY DOUGLAS CONSTRUCTION LTD,24050080,48786.26
Department of Health,Leicestershire Partnership NHS Trust,09/05/24,WIP Project Not in BS - Buildings excl Dwellings,Work in Progress,TILBURY DOUGLAS CONSTRUCTION LTD,24050082,52155.61
Department of Health,Leicestershire Partnership NHS Trust,10/05/24,Telephone equipment,"LGH - Gwendolen House (P4, LPT)",VIRGIN MEDIA BUSINESS,60052892,53002.25
Department of Health,Leicestershire Partnership NHS Trust,14/05/24,Healthcare Services / Recharges from Non-NHS Bodies,Adult Eating Disorder Collaborative,ELLERN MEDE MOORGATE,OTM0943,36000.00
Department of Health,Leicestershire Partnership NHS Trust,15/05/24,Crs_NHS_LT1y -Resus Inventory Supplied.,Balance Sheet Collection,SUPPLY CHAIN CO LTD,1125035826,26449.64
Department of Health,Leicestershire Partnership NHS Trust,15/05/24,Catering - Patient - Food,"Bradgate Unit (including Glenvale day Unit) (P7, LPT)",APETITO LTD,WC/150524,3601.62
Department of Health,Leicestershire Partnership NHS Trust,15/05/24,Catering - Patient - Food,"Coalville Community Hospital (P138, LPT)",APETITO LTD,WC/150524,1791.69
Department of Health,Leicestershire Partnership NHS Trust,15/05/24,Catering - Patient - Food,"Evington Centre (P6, LPT)",APETITO LTD,WC/150524,2851.69
Department of Health,Leicestershire Partnership NHS Trust,15/05/24,Catering - Patient - Food,"Hinckley and Bosworth Community Hospital (Sunnyside) (P133, LPT)",APETITO LTD,WC/150524,9903.89
Department of Health,Leicestershire Partnership NHS Trust,15/05/24,Catering - Patient - Food,"Loughborough Hospital (P136, LPT)",APETITO LTD,WC/150524,1531.29
Department of Health,Leicestershire Partnership NHS Trust,15/05/24,Catering - Patient - Food,"Rutland Memorial Hospital (P134, LPT)",APETITO LTD,WC/150524,159.42
Department of Health,Leicestershire Partnership NHS Trust,15/05/24,Catering - Patient - Food,"Stewart House (P61, LPT)",APETITO LTD,WC/150524,6615.79
Department of Health,Leicestershire Partnership NHS Trust,15/05/24,Catering - Patient - Food,"The Willows - Cordelia Close (P22, LPT)",APETITO LTD,WC/150524,188.41
Department of Health,Leicestershire Partnership NHS Trust,16/05/24,Med Trainees - FY1,Medical Trainees,UHL NHS TRUST (RWE),L0282045,32302.93
Department of Health,Leicestershire Partnership NHS Trust,16/05/24,Insurance Costs,Chief Executives Office,NHS LITIGATION AUTHORITY,SICX415836,185718.30
Department of Health,Leicestershire Partnership NHS Trust,17/05/24,Building & Engineering Equipment Equipment/Materials,Estates & Maintenance Team,BELLROCK PROPERTY FACILITIES MANGEMENT LTD,110-52473,62562.26
Department of Health,Leicestershire Partnership NHS Trust,17/05/24,NURSE - BAND 2 - AGENCY,Beechwood Ward,HCL WORKFORCE SOLUTIONS,WFIP000017,974.43
Department of Health,Leicestershire Partnership NHS Trust,17/05/24,NURSE - BAND 5 - AGENCY,Beechwood Ward,HCL WORKFORCE SOLUTIONS,WFIP000017,1979.98
Department of Health,Leicestershire Partnership NHS Trust,17/05/24,NURSE - BAND 5 - AGENCY,City Planned Care - East,HCL WORKFORCE SOLUTIONS,WFIP000017,28681.93
Department of Health,Leicestershire Partnership NHS Trust,17/05/24,NURSE - BAND 5 - AGENCY,City Planned Care - West,HCL WORKFORCE SOLUTIONS,WFIP000017,28034.70
Department of Health,Leicestershire Partnership NHS Trust,17/05/24,NURSE - BAND 2 - AGENCY,Clarendon Ward,HCL WORKFORCE SOLUTIONS,WFIP000017,599.15
Department of Health,Leicestershire Partnership NHS Trust,17/05/24,NURSE - BAND 5 - AGENCY,Clarendon Ward,HCL WORKFORCE SOLUTIONS,WFIP000017,1025.41
Department of Health,Leicestershire Partnership NHS Trust,17/05/24,NURSE - BAND 2 - AGENCY,Coalville Snibston Ward,HCL WORKFORCE SOLUTIONS,WFIP000017,1748.19
Department of Health,Leicestershire Partnership NHS Trust,17/05/24,NURSE - BAND 5 - AGENCY,Coalville Snibston Ward,HCL WORKFORCE SOLUTIONS,WFIP000017,2118.66
Department of Health,Leicestershire Partnership NHS Trust,17/05/24,NURSE - BAND 2 - AGENCY,Coalville Ward 2,HCL WORKFORCE SOLUTIONS,WFIP000017,3447.05
Department of Health,Leicestershire Partnership NHS Trust,17/05/24,NURSE - BAND 5 - AGENCY,Coalville Ward 2,HCL WORKFORCE SOLUTIONS,WFIP000017,3085.17
Department of Health,Leicestershire Partnership NHS Trust,17/05/24,NURSE - BAND 2 - AGENCY,Coalville Ward 4,HCL WORKFORCE SOLUTIONS,WFIP000017,743.75
Department of Health,Leicestershire Partnership NHS Trust,17/05/24,NURSE - BAND 5 - AGENCY,Coalville Ward 4,HCL WORKFORCE SOLUTIONS,WFIP000017,2995.75
Department of Health,Leicestershire Partnership NHS Trust,17/05/24,NURSE - BAND 2 - AGENCY,Dalgliesh Ward,HCL WORKFORCE SOLUTIONS,WFIP000017,2480.21
Department of Health,Leicestershire Partnership NHS Trust,17/05/24,NURSE - BAND 5 - AGENCY,Dalgliesh Ward,HCL WORKFORCE SOLUTIONS,WFIP000017,2089.49
Department of Health,Leicestershire Partnership NHS Trust,17/05/24,NURSE - BAND 5 - AGENCY,East Planned Care - Blaby/Lutterworth,HCL WORKFORCE SOLUTIONS,WFIP000017,8267.58
Department of Health,Leicestershire Partnership NHS Trust,17/05/24,NURSE - BAND 5 - AGENCY,"East Planned Care - Melton,Syston,Rutland",HCL WORKFORCE SOLUTIONS,WFIP000017,2201.42
Department of Health,Leicestershire Partnership NHS Trust,17/05/24,NURSE - BAND 5 - AGENCY,"East Planned Care - Oadby,Wigston & Harborough",HCL WORKFORCE SOLUTIONS,WFIP000017,5902.13
Department of Health,Leicestershire Partnership NHS Trust,17/05/24,NURSE - BAND 2 - AGENCY,H&B Comm Hosp East Ward,HCL WORKFORCE SOLUTIONS,WFIP000017,2215.73
Department of Health,Leicestershire Partnership NHS Trust,17/05/24,NURSE - BAND 5 - AGENCY,H&B Comm Hosp East Ward,HCL WORKFORCE SOLUTIONS,WFIP000017,6465.93
Department of Health,Leicestershire Partnership NHS Trust,17/05/24,NURSE - BAND 2 - AGENCY,H&B Comm Hosp North Ward,HCL WORKFORCE SOLUTIONS,WFIP000017,1434.08
Department of Health,Leicestershire Partnership NHS Trust,17/05/24,NURSE - BAND 5 - AGENCY,H&B Comm Hosp North Ward,HCL WORKFORCE SOLUTIONS,WFIP000017,757.52
Department of Health,Leicestershire Partnership NHS Trust,17/05/24,NURSE - BAND 2 - AGENCY,Lough Swithland Ward,HCL WORKFORCE SOLUTIONS,WFIP000017,1241.33
Department of Health,Leicestershire Partnership NHS Trust,17/05/24,NURSE - BAND 5 - AGENCY,Lough Swithland Ward,HCL WORKFORCE SOLUTIONS,WFIP000017,2946.82
Department of Health,Leicestershire Partnership NHS Trust,17/05/24,NURSE - BAND 2 - AGENCY,Loughborough Charnwood Ward,HCL WORKFORCE SOLUTIONS,WFIP000017,1443.19
Department of Health,Leicestershire Partnership NHS Trust,17/05/24,NURSE - BAND 5 - AGENCY,Loughborough Charnwood Ward,HCL WORKFORCE SOLUTIONS,WFIP000017,2765.09
Department of Health,Leicestershire Partnership NHS Trust,17/05/24,NURSE - BAND 5 - AGENCY,Non Recurrent 2012/13,HCL WORKFORCE SOLUTIONS,WFIP000017,1227.14
Department of Health,Leicestershire Partnership NHS Trust,17/05/24,NURSE - BAND 2 - AGENCY,Rutland Ward Nursing,HCL WORKFORCE SOLUTIONS,WFIP000017,4660.16
Department of Health,Leicestershire Partnership NHS Trust,17/05/24,NURSE - BAND 5 - AGENCY,Rutland Ward Nursing,HCL WORKFORCE SOLUTIONS,WFIP000017,1262.28
Department of Health,Leicestershire Partnership NHS Trust,17/05/24,NURSE - BAND 2 - AGENCY,St Lukes Stroke Ward,HCL WORKFORCE SOLUTIONS,WFIP000017,2848.17
Department of Health,Leicestershire Partnership NHS Trust,17/05/24,NURSE - BAND 5 - AGENCY,St Lukes Stroke Ward,HCL WORKFORCE SOLUTIONS,WFIP000017,1956.68
Department of Health,Leicestershire Partnership NHS Trust,17/05/24,NURSE - BAND 2 - AGENCY,St Lukes Ward 3,HCL WORKFORCE SOLUTIONS,WFIP000017,2067.60
Department of Health,Leicestershire Partnership NHS Trust,17/05/24,NURSE - BAND 5 - AGENCY,St Lukes Ward 3,HCL WORKFORCE SOLUTIONS,WFIP000017,1258.08
Department of Health,Leicestershire Partnership NHS Trust,17/05/24,NURSE - BAND 5 - AGENCY,West Planned Care  - Charnwood Hub,HCL WORKFORCE SOLUTIONS,WFIP000017,8715.34
Department of Health,Leicestershire Partnership NHS Trust,17/05/24,NURSE - BAND 5 - AGENCY,West Planned Care  - Hinckley Hub,HCL WORKFORCE SOLUTIONS,WFIP000017,10327.90
Department of Health,Leicestershire Partnership NHS Trust,17/05/24,NURSE - BAND 2 - AGENCY,Beechwood Ward,HCL WORKFORCE SOLUTIONS,SI0000878,229.46
Department of Health,Leicestershire Partnership NHS Trust,17/05/24,NURSE - BAND 5 - AGENCY,Beechwood Ward,HCL WORKFORCE SOLUTIONS,SI0000878,995.85
Department of Health,Leicestershire Partnership NHS Trust,17/05/24,NURSE - BAND 5 - AGENCY,City Planned Care - East,HCL WORKFORCE SOLUTIONS,SI0000878,27768.80
Department of Health,Leicestershire Partnership NHS Trust,17/05/24,NURSE - BAND 5 - AGENCY,City Planned Care - West,HCL WORKFORCE SOLUTIONS,SI0000878,28139.83
Department of Health,Leicestershire Partnership NHS Trust,17/05/24,NURSE - BAND 2 - AGENCY,Clarendon Ward,HCL WORKFORCE SOLUTIONS,SI0000878,697.13
Department of Health,Leicestershire Partnership NHS Trust,17/05/24,NURSE - BAND 5 - AGENCY,Clarendon Ward,HCL WORKFORCE SOLUTIONS,SI0000878,1712.32
Department of Health,Leicestershire Partnership NHS Trust,17/05/24,NURSE - BAND 2 - AGENCY,Coalville Snibston Ward,HCL WORKFORCE SOLUTIONS,SI0000878,1395.64
Department of Health,Leicestershire Partnership NHS Trust,17/05/24,NURSE - BAND 5 - AGENCY,Coalville Snibston Ward,HCL WORKFORCE SOLUTIONS,SI0000878,1634.19
Department of Health,Leicestershire Partnership NHS Trust,17/05/24,NURSE - BAND 2 - AGENCY,Coalville Ward 2,HCL WORKFORCE SOLUTIONS,SI0000878,3936.62
Department of Health,Leicestershire Partnership NHS Trust,17/05/24,NURSE - BAND 5 - AGENCY,Coalville Ward 2,HCL WORKFORCE SOLUTIONS,SI0000878,1253.56
Department of Health,Leicestershire Partnership NHS Trust,17/05/24,NURSE - BAND 2 - AGENCY,Coalville Ward 4,HCL WORKFORCE SOLUTIONS,SI0000878,3797.98
Department of Health,Leicestershire Partnership NHS Trust,17/05/24,NURSE - BAND 5 - AGENCY,Coalville Ward 4,HCL WORKFORCE SOLUTIONS,SI0000878,7303.29
Department of Health,Leicestershire Partnership NHS Trust,17/05/24,NURSE - BAND 2 - AGENCY,Dalgliesh Ward,HCL WORKFORCE SOLUTIONS,SI0000878,4466.74
Department of Health,Leicestershire Partnership NHS Trust,17/05/24,NURSE - BAND 5 - AGENCY,Dalgliesh Ward,HCL WORKFORCE SOLUTIONS,SI0000878,3498.01
Department of Health,Leicestershire Partnership NHS Trust,17/05/24,NURSE - BAND 5 - AGENCY,East Planned Care - Blaby/Lutterworth,HCL WORKFORCE SOLUTIONS,SI0000878,1246.44
Department of Health,Leicestershire Partnership NHS Trust,17/05/24,NURSE - BAND 5 - AGENCY,"East Planned Care - Melton,Syston,Rutland",HCL WORKFORCE SOLUTIONS,SI0000878,3192.14
Department of Health,Leicestershire Partnership NHS Trust,17/05/24,NURSE - BAND 5 - AGENCY,"East Planned Care - Oadby,Wigston & Harborough",HCL WORKFORCE SOLUTIONS,SI0000878,4765.39
Department of Health,Leicestershire Partnership NHS Trust,17/05/24,NURSE - BAND 2 - AGENCY,H&B Comm Hosp East Ward,HCL WORKFORCE SOLUTIONS,SI0000878,3917.57
Department of Health,Leicestershire Partnership NHS Trust,17/05/24,NURSE - BAND 5 - AGENCY,H&B Comm Hosp East Ward,HCL WORKFORCE SOLUTIONS,SI0000878,8413.57
Department of Health,Leicestershire Partnership NHS Trust,17/05/24,NURSE - BAND 2 - AGENCY,H&B Comm Hosp North Ward,HCL WORKFORCE SOLUTIONS,SI0000878,484.12
Department of Health,Leicestershire Partnership NHS Trust,17/05/24,NURSE - BAND 5 - AGENCY,H&B Comm Hosp North Ward,HCL WORKFORCE SOLUTIONS,SI0000878,776.66
Department of Health,Leicestershire Partnership NHS Trust,17/05/24,NURSE - BAND 2 - AGENCY,Lough Swithland Ward,HCL WORKFORCE SOLUTIONS,SI0000878,915.09
Department of Health,Leicestershire Partnership NHS Trust,17/05/24,NURSE - BAND 2 - AGENCY,Loughborough Charnwood Ward,HCL WORKFORCE SOLUTIONS,SI0000878,2686.41
Department of Health,Leicestershire Partnership NHS Trust,17/05/24,NURSE - BAND 5 - AGENCY,Loughborough Charnwood Ward,HCL WORKFORCE SOLUTIONS,SI0000878,5484.54
Department of Health,Leicestershire Partnership NHS Trust,17/05/24,NURSE - BAND 5 - AGENCY,Non Recurrent 2012/13,HCL WORKFORCE SOLUTIONS,SI0000878,180.55
Department of Health,Leicestershire Partnership NHS Trust,17/05/24,NURSE - BAND 2 - AGENCY,Rutland Ward Nursing,HCL WORKFORCE SOLUTIONS,SI0000878,5366.37
Department of Health,Leicestershire Partnership NHS Trust,17/05/24,NURSE - BAND 5 - AGENCY,Rutland Ward Nursing,HCL WORKFORCE SOLUTIONS,SI0000878,3546.08
Department of Health,Leicestershire Partnership NHS Trust,17/05/24,NURSE - BAND 5 - AGENCY,St Lukes Stroke Ward,HCL WORKFORCE SOLUTIONS,SI0000878,7263.62
Department of Health,Leicestershire Partnership NHS Trust,17/05/24,NURSE - BAND 2 - AGENCY,St Lukes Ward 3,HCL WORKFORCE SOLUTIONS,SI0000878,1670.49
Department of Health,Leicestershire Partnership NHS Trust,17/05/24,NURSE - BAND 5 - AGENCY,St Lukes Ward 3,HCL WORKFORCE SOLUTIONS,SI0000878,710.58
Department of Health,Leicestershire Partnership NHS Trust,17/05/24,NURSE - BAND 5 - AGENCY,West Planned Care  - Charnwood Hub,HCL WORKFORCE SOLUTIONS,SI0000878,5728.36
Department of Health,Leicestershire Partnership NHS Trust,17/05/24,NURSE - BAND 5 - AGENCY,West Planned Care  - Hinckley Hub,HCL WORKFORCE SOLUTIONS,SI0000878,5355.74
Department of Health,Leicestershire Partnership NHS Trust,20/05/24,NURSE - BAND 2 - AGENCY,Beechwood Ward,HCL WORKFORCE SOLUTIONS,SI0000870,1596.33
Department of Health,Leicestershire Partnership NHS Trust,20/05/24,NURSE - BAND 5 - AGENCY,Beechwood Ward,HCL WORKFORCE SOLUTIONS,SI0000870,2314.12
Department of Health,Leicestershire Partnership NHS Trust,20/05/24,NURSE - BAND 5 - AGENCY,City Planned Care - East,HCL WORKFORCE SOLUTIONS,SI0000870,38275.28
Department of Health,Leicestershire Partnership NHS Trust,20/05/24,NURSE - BAND 5 - AGENCY,City Planned Care - West,HCL WORKFORCE SOLUTIONS,SI0000870,20634.48
Department of Health,Leicestershire Partnership NHS Trust,20/05/24,NURSE - BAND 2 - AGENCY,Clarendon Ward,HCL WORKFORCE SOLUTIONS,SI0000870,795.54
Department of Health,Leicestershire Partnership NHS Trust,20/05/24,NURSE - BAND 5 - AGENCY,Clarendon Ward,HCL WORKFORCE SOLUTIONS,SI0000870,755.35
Department of Health,Leicestershire Partnership NHS Trust,20/05/24,NURSE - BAND 2 - AGENCY,Coalville Snibston Ward,HCL WORKFORCE SOLUTIONS,SI0000870,4016.18
Department of Health,Leicestershire Partnership NHS Trust,20/05/24,NURSE - BAND 5 - AGENCY,Coalville Snibston Ward,HCL WORKFORCE SOLUTIONS,SI0000870,1231.18
Department of Health,Leicestershire Partnership NHS Trust,20/05/24,NURSE - BAND 2 - AGENCY,Coalville Ward 2,HCL WORKFORCE SOLUTIONS,SI0000870,3839.82
Department of Health,Leicestershire Partnership NHS Trust,20/05/24,NURSE - BAND 5 - AGENCY,Coalville Ward 2,HCL WORKFORCE SOLUTIONS,SI0000870,2452.76
Department of Health,Leicestershire Partnership NHS Trust,20/05/24,NURSE - BAND 2 - AGENCY,Coalville Ward 4,HCL WORKFORCE SOLUTIONS,SI0000870,3259.02
Department of Health,Leicestershire Partnership NHS Trust,20/05/24,NURSE - BAND 5 - AGENCY,Coalville Ward 4,HCL WORKFORCE SOLUTIONS,SI0000870,7483.36
Department of Health,Leicestershire Partnership NHS Trust,20/05/24,NURSE - BAND 2 - AGENCY,Dalgliesh Ward,HCL WORKFORCE SOLUTIONS,SI0000870,7518.90
Department of Health,Leicestershire Partnership NHS Trust,20/05/24,NURSE - BAND 5 - AGENCY,Dalgliesh Ward,HCL WORKFORCE SOLUTIONS,SI0000870,3100.30
Department of Health,Leicestershire Partnership NHS Trust,20/05/24,NURSE - BAND 5 - AGENCY,East Planned Care - Blaby/Lutterworth,HCL WORKFORCE SOLUTIONS,SI0000870,2854.66
Department of Health,Leicestershire Partnership NHS Trust,20/05/24,NURSE - BAND 5 - AGENCY,"East Planned Care - Melton,Syston,Rutland",HCL WORKFORCE SOLUTIONS,SI0000870,6958.06
Department of Health,Leicestershire Partnership NHS Trust,20/05/24,NURSE - BAND 5 - AGENCY,"East Planned Care - Oadby,Wigston & Harborough",HCL WORKFORCE SOLUTIONS,SI0000870,7591.73
Department of Health,Leicestershire Partnership NHS Trust,20/05/24,NURSE - BAND 2 - AGENCY,H&B Comm Hosp East Ward,HCL WORKFORCE SOLUTIONS,SI0000870,9785.88
Department of Health,Leicestershire Partnership NHS Trust,20/05/24,NURSE - BAND 5 - AGENCY,H&B Comm Hosp East Ward,HCL WORKFORCE SOLUTIONS,SI0000870,7609.49
Department of Health,Leicestershire Partnership NHS Trust,20/05/24,NURSE - BAND 2 - AGENCY,H&B Comm Hosp North Ward,HCL WORKFORCE SOLUTIONS,SI0000870,2177.96
Department of Health,Leicestershire Partnership NHS Trust,20/05/24,NURSE - BAND 5 - AGENCY,H&B Comm Hosp North Ward,HCL WORKFORCE SOLUTIONS,SI0000870,554.43
Department of Health,Leicestershire Partnership NHS Trust,20/05/24,NURSE - BAND 2 - AGENCY,Lough Swithland Ward,HCL WORKFORCE SOLUTIONS,SI0000870,1486.36
Department of Health,Leicestershire Partnership NHS Trust,20/05/24,NURSE - BAND 5 - AGENCY,Lough Swithland Ward,HCL WORKFORCE SOLUTIONS,SI0000870,593.63
Department of Health,Leicestershire Partnership NHS Trust,20/05/24,NURSE - BAND 2 - AGENCY,Loughborough Charnwood Ward,HCL WORKFORCE SOLUTIONS,SI0000870,3688.60
Department of Health,Leicestershire Partnership NHS Trust,20/05/24,NURSE - BAND 5 - AGENCY,Loughborough Charnwood Ward,HCL WORKFORCE SOLUTIONS,SI0000870,4042.69
Department of Health,Leicestershire Partnership NHS Trust,20/05/24,NURSE - BAND 5 - AGENCY,Non Recurrent 2012/13,HCL WORKFORCE SOLUTIONS,SI0000870,1819.98
Department of Health,Leicestershire Partnership NHS Trust,20/05/24,NURSE - BAND 2 - AGENCY,Rutland Ward Nursing,HCL WORKFORCE SOLUTIONS,SI0000870,7645.51
Department of Health,Leicestershire Partnership NHS Trust,20/05/24,NURSE - BAND 5 - AGENCY,Rutland Ward Nursing,HCL WORKFORCE SOLUTIONS,SI0000870,1200.16
Department of Health,Leicestershire Partnership NHS Trust,20/05/24,NURSE - BAND 2 - AGENCY,St Lukes Stroke Ward,HCL WORKFORCE SOLUTIONS,SI0000870,3620.26
Department of Health,Leicestershire Partnership NHS Trust,20/05/24,NURSE - BAND 5 - AGENCY,St Lukes Stroke Ward,HCL WORKFORCE SOLUTIONS,SI0000870,931.97
Department of Health,Leicestershire Partnership NHS Trust,20/05/24,NURSE - BAND 2 - AGENCY,St Lukes Ward 3,HCL WORKFORCE SOLUTIONS,SI0000870,3069.96
Department of Health,Leicestershire Partnership NHS Trust,20/05/24,NURSE - BAND 5 - AGENCY,St Lukes Ward 3,HCL WORKFORCE SOLUTIONS,SI0000870,273.30
Department of Health,Leicestershire Partnership NHS Trust,20/05/24,NURSE - BAND 5 - AGENCY,West Planned Care  - Charnwood Hub,HCL WORKFORCE SOLUTIONS,SI0000870,7721.34
Department of Health,Leicestershire Partnership NHS Trust,20/05/24,NURSE - BAND 5 - AGENCY,West Planned Care  - Hinckley Hub,HCL WORKFORCE SOLUTIONS,SI0000870,1075.20
Department of Health,Leicestershire Partnership NHS Trust,20/05/24,NURSE - BAND 2 - AGENCY,Beechwood Ward,HCL WORKFORCE SOLUTIONS,SI0000874,1884.33
Department of Health,Leicestershire Partnership NHS Trust,20/05/24,NURSE - BAND 5 - AGENCY,Beechwood Ward,HCL WORKFORCE SOLUTIONS,SI0000874,992.06
Department of Health,Leicestershire Partnership NHS Trust,20/05/24,NURSE - BAND 5 - AGENCY,City Planned Care - East,HCL WORKFORCE SOLUTIONS,SI0000874,29709.96
Department of Health,Leicestershire Partnership NHS Trust,20/05/24,NURSE - BAND 5 - AGENCY,City Planned Care - West,HCL WORKFORCE SOLUTIONS,SI0000874,28977.40
Department of Health,Leicestershire Partnership NHS Trust,20/05/24,NURSE - BAND 2 - AGENCY,Clarendon Ward,HCL WORKFORCE SOLUTIONS,SI0000874,504.30
Department of Health,Leicestershire Partnership NHS Trust,20/05/24,NURSE - BAND 5 - AGENCY,Clarendon Ward,HCL WORKFORCE SOLUTIONS,SI0000874,1293.26
Department of Health,Leicestershire Partnership NHS Trust,20/05/24,NURSE - BAND 2 - AGENCY,Coalville Snibston Ward,HCL WORKFORCE SOLUTIONS,SI0000874,3917.13
Department of Health,Leicestershire Partnership NHS Trust,20/05/24,NURSE - BAND 5 - AGENCY,Coalville Snibston Ward,HCL WORKFORCE SOLUTIONS,SI0000874,2025.67
Department of Health,Leicestershire Partnership NHS Trust,20/05/24,NURSE - BAND 2 - AGENCY,Coalville Ward 2,HCL WORKFORCE SOLUTIONS,SI0000874,4742.59
Department of Health,Leicestershire Partnership NHS Trust,20/05/24,NURSE - BAND 5 - AGENCY,Coalville Ward 2,HCL WORKFORCE SOLUTIONS,SI0000874,2958.86
Department of Health,Leicestershire Partnership NHS Trust,20/05/24,NURSE - BAND 2 - AGENCY,Coalville Ward 4,HCL WORKFORCE SOLUTIONS,SI0000874,2626.44
Department of Health,Leicestershire Partnership NHS Trust,20/05/24,NURSE - BAND 5 - AGENCY,Coalville Ward 4,HCL WORKFORCE SOLUTIONS,SI0000874,7108.22
Department of Health,Leicestershire Partnership NHS Trust,20/05/24,NURSE - BAND 2 - AGENCY,Dalgliesh Ward,HCL WORKFORCE SOLUTIONS,SI0000874,6857.25
Department of Health,Leicestershire Partnership NHS Trust,20/05/24,NURSE - BAND 5 - AGENCY,Dalgliesh Ward,HCL WORKFORCE SOLUTIONS,SI0000874,3521.67
Department of Health,Leicestershire Partnership NHS Trust,20/05/24,NURSE - BAND 5 - AGENCY,East Planned Care - Blaby/Lutterworth,HCL WORKFORCE SOLUTIONS,SI0000874,4358.61
Department of Health,Leicestershire Partnership NHS Trust,20/05/24,NURSE - BAND 5 - AGENCY,"East Planned Care - Melton,Syston,Rutland",HCL WORKFORCE SOLUTIONS,SI0000874,4185.81
Department of Health,Leicestershire Partnership NHS Trust,20/05/24,NURSE - BAND 5 - AGENCY,"East Planned Care - Oadby,Wigston & Harborough",HCL WORKFORCE SOLUTIONS,SI0000874,374.33
Department of Health,Leicestershire Partnership NHS Trust,20/05/24,NURSE - BAND 2 - AGENCY,H&B Comm Hosp East Ward,HCL WORKFORCE SOLUTIONS,SI0000874,9040.84
Department of Health,Leicestershire Partnership NHS Trust,20/05/24,NURSE - BAND 5 - AGENCY,H&B Comm Hosp East Ward,HCL WORKFORCE SOLUTIONS,SI0000874,5546.11
Department of Health,Leicestershire Partnership NHS Trust,20/05/24,NURSE - BAND 2 - AGENCY,H&B Comm Hosp North Ward,HCL WORKFORCE SOLUTIONS,SI0000874,1343.47
Department of Health,Leicestershire Partnership NHS Trust,20/05/24,NURSE - BAND 2 - AGENCY,Lough Swithland Ward,HCL WORKFORCE SOLUTIONS,SI0000874,1516.64
Department of Health,Leicestershire Partnership NHS Trust,20/05/24,NURSE - BAND 5 - AGENCY,Lough Swithland Ward,HCL WORKFORCE SOLUTIONS,SI0000874,1373.88
Department of Health,Leicestershire Partnership NHS Trust,20/05/24,NURSE - BAND 2 - AGENCY,Loughborough Charnwood Ward,HCL WORKFORCE SOLUTIONS,SI0000874,3498.59
Department of Health,Leicestershire Partnership NHS Trust,20/05/24,NURSE - BAND 5 - AGENCY,Loughborough Charnwood Ward,HCL WORKFORCE SOLUTIONS,SI0000874,11358.77
Department of Health,Leicestershire Partnership NHS Trust,20/05/24,NURSE - BAND 5 - AGENCY,Non Recurrent 2012/13,HCL WORKFORCE SOLUTIONS,SI0000874,4230.16
Department of Health,Leicestershire Partnership NHS Trust,20/05/24,NURSE - BAND 2 - AGENCY,Rutland Ward Nursing,HCL WORKFORCE SOLUTIONS,SI0000874,8235.14
Department of Health,Leicestershire Partnership NHS Trust,20/05/24,NURSE - BAND 5 - AGENCY,Rutland Ward Nursing,HCL WORKFORCE SOLUTIONS,SI0000874,4030.19
Department of Health,Leicestershire Partnership NHS Trust,20/05/24,NURSE - BAND 2 - AGENCY,St Lukes Stroke Ward,HCL WORKFORCE SOLUTIONS,SI0000874,3203.48
Department of Health,Leicestershire Partnership NHS Trust,20/05/24,NURSE - BAND 5 - AGENCY,St Lukes Stroke Ward,HCL WORKFORCE SOLUTIONS,SI0000874,4643.29
Department of Health,Leicestershire Partnership NHS Trust,20/05/24,NURSE - BAND 2 - AGENCY,St Lukes Ward 3,HCL WORKFORCE SOLUTIONS,SI0000874,527.22
Department of Health,Leicestershire Partnership NHS Trust,20/05/24,NURSE - BAND 5 - AGENCY,St Lukes Ward 3,HCL WORKFORCE SOLUTIONS,SI0000874,419.06
Department of Health,Leicestershire Partnership NHS Trust,20/05/24,NURSE - BAND 5 - AGENCY,West Planned Care  - Charnwood Hub,HCL WORKFORCE SOLUTIONS,SI0000874,8077.13
Department of Health,Leicestershire Partnership NHS Trust,20/05/24,NURSE - BAND 5 - AGENCY,West Planned Care  - Hinckley Hub,HCL WORKFORCE SOLUTIONS,SI0000874,7065.84
Department of Health,Leicestershire Partnership NHS Trust,20/05/24,NURSE - BAND 2 - AGENCY,Beechwood Ward,HCL WORKFORCE SOLUTIONS,SI0000866,2260.54
Department of Health,Leicestershire Partnership NHS Trust,20/05/24,NURSE - BAND 5 - AGENCY,Beechwood Ward,HCL WORKFORCE SOLUTIONS,SI0000866,1423.15
Department of Health,Leicestershire Partnership NHS Trust,20/05/24,NURSE - BAND 5 - AGENCY,City Planned Care - East,HCL WORKFORCE SOLUTIONS,SI0000866,28520.89
Department of Health,Leicestershire Partnership NHS Trust,20/05/24,NURSE - BAND 5 - AGENCY,City Planned Care - West,HCL WORKFORCE SOLUTIONS,SI0000866,26291.14
Department of Health,Leicestershire Partnership NHS Trust,20/05/24,NURSE - BAND 2 - AGENCY,Clarendon Ward,HCL WORKFORCE SOLUTIONS,SI0000866,914.08
Department of Health,Leicestershire Partnership NHS Trust,20/05/24,NURSE - BAND 5 - AGENCY,Clarendon Ward,HCL WORKFORCE SOLUTIONS,SI0000866,2922.41
Department of Health,Leicestershire Partnership NHS Trust,20/05/24,NURSE - BAND 2 - AGENCY,Coalville Snibston Ward,HCL WORKFORCE SOLUTIONS,SI0000866,4394.48
Department of Health,Leicestershire Partnership NHS Trust,20/05/24,NURSE - BAND 5 - AGENCY,Coalville Snibston Ward,HCL WORKFORCE SOLUTIONS,SI0000866,4023.09
Department of Health,Leicestershire Partnership NHS Trust,20/05/24,NURSE - BAND 2 - AGENCY,Coalville Ward 2,HCL WORKFORCE SOLUTIONS,SI0000866,3890.67
Department of Health,Leicestershire Partnership NHS Trust,20/05/24,NURSE - BAND 5 - AGENCY,Coalville Ward 2,HCL WORKFORCE SOLUTIONS,SI0000866,1404.86
Department of Health,Leicestershire Partnership NHS Trust,20/05/24,NURSE - BAND 2 - AGENCY,Coalville Ward 4,HCL WORKFORCE SOLUTIONS,SI0000866,4466.42
Department of Health,Leicestershire Partnership NHS Trust,20/05/24,NURSE - BAND 5 - AGENCY,Coalville Ward 4,HCL WORKFORCE SOLUTIONS,SI0000866,7003.61
Department of Health,Leicestershire Partnership NHS Trust,20/05/24,NURSE - BAND 2 - AGENCY,Dalgliesh Ward,HCL WORKFORCE SOLUTIONS,SI0000866,9300.63
Department of Health,Leicestershire Partnership NHS Trust,20/05/24,NURSE - BAND 5 - AGENCY,Dalgliesh Ward,HCL WORKFORCE SOLUTIONS,SI0000866,4644.61
Department of Health,Leicestershire Partnership NHS Trust,20/05/24,NURSE - BAND 5 - AGENCY,East Planned Care - Blaby/Lutterworth,HCL WORKFORCE SOLUTIONS,SI0000866,1122.09
Department of Health,Leicestershire Partnership NHS Trust,20/05/24,NURSE - BAND 5 - AGENCY,"East Planned Care - Melton,Syston,Rutland",HCL WORKFORCE SOLUTIONS,SI0000866,4273.88
Department of Health,Leicestershire Partnership NHS Trust,20/05/24,NURSE - BAND 5 - AGENCY,"East Planned Care - Oadby,Wigston & Harborough",HCL WORKFORCE SOLUTIONS,SI0000866,792.03
Department of Health,Leicestershire Partnership NHS Trust,20/05/24,NURSE - BAND 2 - AGENCY,H&B Comm Hosp East Ward,HCL WORKFORCE SOLUTIONS,SI0000866,9761.64
Department of Health,Leicestershire Partnership NHS Trust,20/05/24,NURSE - BAND 5 - AGENCY,H&B Comm Hosp East Ward,HCL WORKFORCE SOLUTIONS,SI0000866,8075.45
Department of Health,Leicestershire Partnership NHS Trust,20/05/24,NURSE - BAND 2 - AGENCY,H&B Comm Hosp North Ward,HCL WORKFORCE SOLUTIONS,SI0000866,1895.87
Department of Health,Leicestershire Partnership NHS Trust,20/05/24,NURSE - BAND 5 - AGENCY,H&B Comm Hosp North Ward,HCL WORKFORCE SOLUTIONS,SI0000866,810.73
Department of Health,Leicestershire Partnership NHS Trust,20/05/24,NURSE - BAND 2 - AGENCY,Lough Swithland Ward,HCL WORKFORCE SOLUTIONS,SI0000866,2121.17
Department of Health,Leicestershire Partnership NHS Trust,20/05/24,NURSE - BAND 5 - AGENCY,Lough Swithland Ward,HCL WORKFORCE SOLUTIONS,SI0000866,3520.06
Department of Health,Leicestershire Partnership NHS Trust,20/05/24,NURSE - BAND 2 - AGENCY,Loughborough Charnwood Ward,HCL WORKFORCE SOLUTIONS,SI0000866,5427.18
Department of Health,Leicestershire Partnership NHS Trust,20/05/24,NURSE - BAND 5 - AGENCY,Loughborough Charnwood Ward,HCL WORKFORCE SOLUTIONS,SI0000866,9631.88
Department of Health,Leicestershire Partnership NHS Trust,20/05/24,NURSE - BAND 2 - AGENCY,Non Recurrent 2012/13,HCL WORKFORCE SOLUTIONS,SI0000866,2885.24
Department of Health,Leicestershire Partnership NHS Trust,20/05/24,NURSE - BAND 5 - AGENCY,Non Recurrent 2012/13,HCL WORKFORCE SOLUTIONS,SI0000866,7859.73
Department of Health,Leicestershire Partnership NHS Trust,20/05/24,NURSE - BAND 2 - AGENCY,Rutland Ward Nursing,HCL WORKFORCE SOLUTIONS,SI0000866,9552.17
Department of Health,Leicestershire Partnership NHS Trust,20/05/24,NURSE - BAND 5 - AGENCY,Rutland Ward Nursing,HCL WORKFORCE SOLUTIONS,SI0000866,2274.17
Department of Health,Leicestershire Partnership NHS Trust,20/05/24,NURSE - BAND 2 - AGENCY,St Lukes Stroke Ward,HCL WORKFORCE SOLUTIONS,SI0000866,5957.49
Department of Health,Leicestershire Partnership NHS Trust,20/05/24,NURSE - BAND 5 - AGENCY,St Lukes Stroke Ward,HCL WORKFORCE SOLUTIONS,SI0000866,760.29
Department of Health,Leicestershire Partnership NHS Trust,20/05/24,NURSE - BAND 2 - AGENCY,St Lukes Ward 3,HCL WORKFORCE SOLUTIONS,SI0000866,1465.10
Department of Health,Leicestershire Partnership NHS Trust,20/05/24,NURSE - BAND 5 - AGENCY,St Lukes Ward 3,HCL WORKFORCE SOLUTIONS,SI0000866,792.28
Department of Health,Leicestershire Partnership NHS Trust,20/05/24,NURSE - BAND 5 - AGENCY,West Planned Care  - Charnwood Hub,HCL WORKFORCE SOLUTIONS,SI0000866,6628.06
Department of Health,Leicestershire Partnership NHS Trust,20/05/24,NURSE - BAND 5 - AGENCY,West Planned Care  - Hinckley Hub,HCL WORKFORCE SOLUTIONS,SI0000866,3268.19
Department of Health,Leicestershire Partnership NHS Trust,20/05/24,Printing Costs,Estates & Facilities Central,LEXMARK INTERNATIONAL LTD,900650308404,26947.85
Department of Health,Leicestershire Partnership NHS Trust,20/05/24,Crs_NHS_LT1y -Resus Inventory Supplied.,Balance Sheet Collection,SUPPLY CHAIN CO LTD,1125042265,42634.84
Department of Health,Leicestershire Partnership NHS Trust,20/05/24,Other Non-Medical Supplies & Services,Inter Unit I & E Distribution,UHL NHS TRUST (RWE),L0282140,32018.40
Department of Health,Leicestershire Partnership NHS Trust,20/05/24,Catering - Patient - Food,"Bradgate Unit (including Glenvale day Unit) (P7, LPT)",APETITO LTD,W/C200524,16947.15
Department of Health,Leicestershire Partnership NHS Trust,20/05/24,Catering - Patient - Food,"Coalville Community Hospital (P138, LPT)",APETITO LTD,W/C200524,4036.00
Department of Health,Leicestershire Partnership NHS Trust,20/05/24,Catering - Patient - Food,"Evington Centre (P6, LPT)",APETITO LTD,W/C200524,7554.96
Department of Health,Leicestershire Partnership NHS Trust,20/05/24,Catering - Patient - Food,"Hinckley and Bosworth Community Hospital (Sunnyside) (P133, LPT)",APETITO LTD,W/C200524,3970.50
Department of Health,Leicestershire Partnership NHS Trust,20/05/24,Catering - Patient - Food,"Loughborough Hospital (P136, LPT)",APETITO LTD,W/C200524,5287.99
Department of Health,Leicestershire Partnership NHS Trust,20/05/24,Catering - Patient - Food,"Rutland Memorial Hospital (P134, LPT)",APETITO LTD,W/C200524,1438.81
Department of Health,Leicestershire Partnership NHS Trust,20/05/24,Catering - Patient - Food,"Stewart House (P61, LPT)",APETITO LTD,W/C200524,2790.26
Department of Health,Leicestershire Partnership NHS Trust,20/05/24,Catering - Patient - Food,"The Willows - Cordelia Close (P22, LPT)",APETITO LTD,W/C200524,3184.43
Department of Health,Leicestershire Partnership NHS Trust,21/05/24,Gas,"Beaumont Leys Health Centre (P94, LPT)",TOTAL GAS & POWER LTD,341243325/24,872.96
Department of Health,Leicestershire Partnership NHS Trust,21/05/24,Gas,"Bennion Centre (including Forest Grange Day Unit) (P8, LPT)",TOTAL GAS & POWER LTD,341243325/24,8458.93
Department of Health,Leicestershire Partnership NHS Trust,21/05/24,Gas,"Bradgate Unit (including Glenvale day Unit) (P7, LPT)",TOTAL GAS & POWER LTD,341243325/24,16976.98
Department of Health,Leicestershire Partnership NHS Trust,21/05/24,Gas,Bridge Park Plaza - First Floor (LPT),TOTAL GAS & POWER LTD,341243325/24,1662.92
Department of Health,Leicestershire Partnership NHS Trust,21/05/24,Gas,"Bridge Park Road - Units 2 and 3 (P148, LPT)",TOTAL GAS & POWER LTD,341243325/24,259.49
Department of Health,Leicestershire Partnership NHS Trust,21/05/24,Gas,"Coalville Community Hospital (P138, LPT)",TOTAL GAS & POWER LTD,341243325/24,11279.00
Department of Health,Leicestershire Partnership NHS Trust,21/05/24,Gas,"Coalville Health Centre (P121, LPT)",TOTAL GAS & POWER LTD,341243325/24,841.91
Department of Health,Leicestershire Partnership NHS Trust,21/05/24,Gas,"Evington Centre (P6, LPT)",TOTAL GAS & POWER LTD,341243325/24,1424.89
Department of Health,Leicestershire Partnership NHS Trust,21/05/24,Gas,"Farm Lodge (P34, LPT)",TOTAL GAS & POWER LTD,341243325/24,156.72
Department of Health,Leicestershire Partnership NHS Trust,21/05/24,Gas,"Feilding Palmer Hospital (Lutterworth) (P131, LPT)",TOTAL GAS & POWER LTD,341243325/24,1998.55
Department of Health,Leicestershire Partnership NHS Trust,21/05/24,Gas,"Frith Cottages 3 & 4 (P36, LPT)",TOTAL GAS & POWER LTD,341243325/24,193.48
Department of Health,Leicestershire Partnership NHS Trust,21/05/24,Gas,HIS,TOTAL GAS & POWER LTD,341243325/24,194.51
Department of Health,Leicestershire Partnership NHS Trust,21/05/24,Gas,"Hawthorne Centre - Coalville (P14, LPT)",TOTAL GAS & POWER LTD,341243325/24,588.94
Department of Health,Leicestershire Partnership NHS Trust,21/05/24,Gas,"Hinckley and Bosworth Community Hospital (Sunnyside) (P133, LPT)",TOTAL GAS & POWER LTD,341243325/24,8601.40
Department of Health,Leicestershire Partnership NHS Trust,21/05/24,Gas,"Hynca Lodge (P33, LPT)",TOTAL GAS & POWER LTD,341243325/24,474.44
Department of Health,Leicestershire Partnership NHS Trust,21/05/24,Gas,"LGH - Gwendolen House (P4, LPT)",TOTAL GAS & POWER LTD,341243325/24,2141.79
Department of Health,Leicestershire Partnership NHS Trust,21/05/24,Gas,"Loughborough Hospital (P136, LPT)",TOTAL GAS & POWER LTD,341243325/24,21874.37
Department of Health,Leicestershire Partnership NHS Trust,21/05/24,Gas,Mawson House (LPT),TOTAL GAS & POWER LTD,341243325/24,674.68
Department of Health,Leicestershire Partnership NHS Trust,21/05/24,Gas,"Mett Centre (P49, LPT)",TOTAL GAS & POWER LTD,341243325/24,408.50
Department of Health,Leicestershire Partnership NHS Trust,21/05/24,Gas,"Narborough Health Centre (P117, LPT)",TOTAL GAS & POWER LTD,341243325/24,671.62
Department of Health,Leicestershire Partnership NHS Trust,21/05/24,Gas,"Neville Centre - LGH (was DSC) (P147, LPT)",TOTAL GAS & POWER LTD,341243325/24,1301.73
Department of Health,Leicestershire Partnership NHS Trust,21/05/24,Gas,"OSL House (P54, LPT)",TOTAL GAS & POWER LTD,341243325/24,866.33
Department of Health,Leicestershire Partnership NHS Trust,21/05/24,Gas,"Orchard Resource Centre (P15, LPT)",TOTAL GAS & POWER LTD,341243325/24,724.43
Department of Health,Leicestershire Partnership NHS Trust,21/05/24,Gas,"Rutland Memorial Hospital (P134, LPT)",TOTAL GAS & POWER LTD,341243325/24,117.08
Department of Health,Leicestershire Partnership NHS Trust,21/05/24,Gas,"Shepshed Health Centre (P123, LPT)",TOTAL GAS & POWER LTD,341243325/24,754.92
Department of Health,Leicestershire Partnership NHS Trust,21/05/24,Gas,"Springfield Road Health Centre (P92, LPT)",TOTAL GAS & POWER LTD,341243325/24,674.05
Department of Health,Leicestershire Partnership NHS Trust,21/05/24,Gas,"Stewart House (P61, LPT)",TOTAL GAS & POWER LTD,341243325/24,3667.18
Department of Health,Leicestershire Partnership NHS Trust,21/05/24,Gas,"Swithland House - London Road 352 (P44, LPT)",TOTAL GAS & POWER LTD,341243325/24,1191.25
Department of Health,Leicestershire Partnership NHS Trust,21/05/24,Gas,"The Agnes Unit (AKA Assessment and Treatment Centre) (P85, LPT)",TOTAL GAS & POWER LTD,341243325/24,4470.85
Department of Health,Leicestershire Partnership NHS Trust,21/05/24,Gas,The Beacon,TOTAL GAS & POWER LTD,341243325/24,2000.84
Department of Health,Leicestershire Partnership NHS Trust,21/05/24,Gas,"The Cedars (P19, LPT)",TOTAL GAS & POWER LTD,341243325/24,389.45
Department of Health,Leicestershire Partnership NHS Trust,21/05/24,Gas,"The Grange 1 (P4, LPT)",TOTAL GAS & POWER LTD,341243325/24,376.59
Department of Health,Leicestershire Partnership NHS Trust,21/05/24,Gas,"The Grange 2 (P41, LPT)",TOTAL GAS & POWER LTD,341243325/24,189.61
Department of Health,Leicestershire Partnership NHS Trust,21/05/24,Gas,"The Willows - Cordelia Close (P22, LPT)",TOTAL GAS & POWER LTD,341243325/24,4386.43
Department of Health,Leicestershire Partnership NHS Trust,21/05/24,Gas,"Valentine Centre (P3, LPT)",TOTAL GAS & POWER LTD,341243325/24,2124.31
Department of Health,Leicestershire Partnership NHS Trust,21/05/24,Gas,"Westcotes Group -Westcotes House (P78, LPT)",TOTAL GAS & POWER LTD,341243325/24,1278.74
Department of Health,Leicestershire Partnership NHS Trust,21/05/24,Gas,"Winstanley Drive Health Centre (P8, LPT)",TOTAL GAS & POWER LTD,341243325/24,741.44
Department of Health,Leicestershire Partnership NHS Trust,21/05/24,Med GP Trainees,Medical Trainees,MWL TEACHING HOSPITALS NHS TRUST,16830904,75000.00
Department of Health,Leicestershire Partnership NHS Trust,21/05/24,Nurse - Band 6 -Agency,AMH - Central Access Point,HCL WORKFORCE SOLUTIONS,SI0000865,4344.35
Department of Health,Leicestershire Partnership NHS Trust,21/05/24,NURSE - BAND 5 - AGENCY,Acute Recovery Team,HCL WORKFORCE SOLUTIONS,SI0000865,271.82
Department of Health,Leicestershire Partnership NHS Trust,21/05/24,Nurse - Band 6 -Agency,Adult City Central CMHT - St Peters,HCL WORKFORCE SOLUTIONS,SI0000865,1606.87
Department of Health,Leicestershire Partnership NHS Trust,21/05/24,Nurse - Band 6 -Agency,Adult City East CMHT,HCL WORKFORCE SOLUTIONS,SI0000865,2792.54
Department of Health,Leicestershire Partnership NHS Trust,21/05/24,Nurse - Band 6 -Agency,Adult County North West Leicestershire CMHT,HCL WORKFORCE SOLUTIONS,SI0000865,1804.90
Department of Health,Leicestershire Partnership NHS Trust,21/05/24,NURSE - BAND 2 - AGENCY,Agnes Unit,HCL WORKFORCE SOLUTIONS,SI0000865,4810.58
Department of Health,Leicestershire Partnership NHS Trust,21/05/24,NURSE - BAND 5 - AGENCY,Agnes Unit,HCL WORKFORCE SOLUTIONS,SI0000865,17770.75
Department of Health,Leicestershire Partnership NHS Trust,21/05/24,NURSE - BAND 2 - AGENCY,Ashby Ward (Bradgate Unit),HCL WORKFORCE SOLUTIONS,SI0000865,453.79
Department of Health,Leicestershire Partnership NHS Trust,21/05/24,NURSE - BAND 5 - AGENCY,Ashby Ward (Bradgate Unit),HCL WORKFORCE SOLUTIONS,SI0000865,5446.27
Department of Health,Leicestershire Partnership NHS Trust,21/05/24,NURSE - BAND 5 - AGENCY,Aston Ward Bradgate Unit (Prev Welford),HCL WORKFORCE SOLUTIONS,SI0000865,1439.02
Department of Health,Leicestershire Partnership NHS Trust,21/05/24,NURSE - BAND 2 - AGENCY,Beaumont Ward - Bradgate Unit,HCL WORKFORCE SOLUTIONS,SI0000865,371.25
Department of Health,Leicestershire Partnership NHS Trust,21/05/24,NURSE - BAND 5 - AGENCY,Beaumont Ward - Bradgate Unit,HCL WORKFORCE SOLUTIONS,SI0000865,3975.12
Department of Health,Leicestershire Partnership NHS Trust,21/05/24,NURSE - BAND 2 - AGENCY,Belvoir Psychiatric Intensive Care Unit,HCL WORKFORCE SOLUTIONS,SI0000865,728.32
Department of Health,Leicestershire Partnership NHS Trust,21/05/24,NURSE - BAND 5 - AGENCY,Belvoir Psychiatric Intensive Care Unit,HCL WORKFORCE SOLUTIONS,SI0000865,3993.56
Department of Health,Leicestershire Partnership NHS Trust,21/05/24,NURSE - BAND 2 - AGENCY,Bosworth Ward - Bradgate Unit,HCL WORKFORCE SOLUTIONS,SI0000865,561.00
Department of Health,Leicestershire Partnership NHS Trust,21/05/24,NURSE - BAND 5 - AGENCY,Bosworth Ward - Bradgate Unit,HCL WORKFORCE SOLUTIONS,SI0000865,1808.51
Department of Health,Leicestershire Partnership NHS Trust,21/05/24,NURSE - BAND 5 - AGENCY,Cedar (Willows),HCL WORKFORCE SOLUTIONS,SI0000865,472.32
Department of Health,Leicestershire Partnership NHS Trust,21/05/24,NURSE - BAND 2 - AGENCY,Coleman Ward,HCL WORKFORCE SOLUTIONS,SI0000865,1068.53
Department of Health,Leicestershire Partnership NHS Trust,21/05/24,NURSE - BAND 5 - AGENCY,Coleman Ward,HCL WORKFORCE SOLUTIONS,SI0000865,1714.04
Department of Health,Leicestershire Partnership NHS Trust,21/05/24,NURSE - BAND 5 - AGENCY,Crisis Resolution,HCL WORKFORCE SOLUTIONS,SI0000865,421.71
Department of Health,Leicestershire Partnership NHS Trust,21/05/24,NURSE - BAND 2 - AGENCY,Griffin Ward (HPC),HCL WORKFORCE SOLUTIONS,SI0000865,399.91
Department of Health,Leicestershire Partnership NHS Trust,21/05/24,NURSE - BAND 5 - AGENCY,Griffin Ward (HPC),HCL WORKFORCE SOLUTIONS,SI0000865,2861.36
Department of Health,Leicestershire Partnership NHS Trust,21/05/24,NURSE - BAND 2 - AGENCY,Gwendolen Ward,HCL WORKFORCE SOLUTIONS,SI0000865,783.59
Department of Health,Leicestershire Partnership NHS Trust,21/05/24,NURSE - BAND 5 - AGENCY,Gwendolen Ward,HCL WORKFORCE SOLUTIONS,SI0000865,3675.98
Department of Health,Leicestershire Partnership NHS Trust,21/05/24,NURSE - BAND 5 - AGENCY,Heather Ward,HCL WORKFORCE SOLUTIONS,SI0000865,4006.77
Department of Health,Leicestershire Partnership NHS Trust,21/05/24,NURSE - BAND 5 - AGENCY,Maple Ward,HCL WORKFORCE SOLUTIONS,SI0000865,807.68
Department of Health,Leicestershire Partnership NHS Trust,21/05/24,NURSE - BAND 2 - AGENCY,Mill Lodge,HCL WORKFORCE SOLUTIONS,SI0000865,151.31
Department of Health,Leicestershire Partnership NHS Trust,21/05/24,NURSE - BAND 5 - AGENCY,Mill Lodge,HCL WORKFORCE SOLUTIONS,SI0000865,1659.30
Department of Health,Leicestershire Partnership NHS Trust,21/05/24,NURSE - BAND 2 - AGENCY,Phoenix Ward (HPC),HCL WORKFORCE SOLUTIONS,SI0000865,585.59
Department of Health,Leicestershire Partnership NHS Trust,21/05/24,NURSE - BAND 5 - AGENCY,Phoenix Ward (HPC),HCL WORKFORCE SOLUTIONS,SI0000865,3129.90
Department of Health,Leicestershire Partnership NHS Trust,21/05/24,NURSE - BAND 2 - AGENCY,Place Of Safety Assessment Unit,HCL WORKFORCE SOLUTIONS,SI0000865,373.59
Department of Health,Leicestershire Partnership NHS Trust,21/05/24,NURSE - BAND 5 - AGENCY,Place Of Safety Assessment Unit,HCL WORKFORCE SOLUTIONS,SI0000865,3993.62
Department of Health,Leicestershire Partnership NHS Trust,21/05/24,NURSE - BAND 2 - AGENCY,Thornton Ward - Bradgate Unit,HCL WORKFORCE SOLUTIONS,SI0000865,184.31
Department of Health,Leicestershire Partnership NHS Trust,21/05/24,NURSE - BAND 5 - AGENCY,Thornton Ward - Bradgate Unit,HCL WORKFORCE SOLUTIONS,SI0000865,464.97
Department of Health,Leicestershire Partnership NHS Trust,21/05/24,Nurse - Band 6 -Agency,CAMHS Waiting List Monies,HCL WORKFORCE SOLUTIONS,WFIP000028,12870.63
Department of Health,Leicestershire Partnership NHS Trust,21/05/24,Nurse - Band 7 - Agency,City West CMHT MHSOP,HCL WORKFORCE SOLUTIONS,WFIP000028,1095.00
Department of Health,Leicestershire Partnership NHS Trust,21/05/24,Nurse - Band 6 -Agency,Crisis Response and Home Treatment,HCL WORKFORCE SOLUTIONS,WFIP000028,17114.70
Department of Health,Leicestershire Partnership NHS Trust,21/05/24,Nurse - Band 6 -Agency,AMH - Central Access Point,HCL WORKFORCE SOLUTIONS,SI0000869,3209.79
Department of Health,Leicestershire Partnership NHS Trust,21/05/24,Nurse - Band 6 -Agency,Adult City Central CMHT - St Peters,HCL WORKFORCE SOLUTIONS,SI0000869,288.81
Department of Health,Leicestershire Partnership NHS Trust,21/05/24,Nurse - Band 6 -Agency,Adult City East CMHT,HCL WORKFORCE SOLUTIONS,SI0000869,2771.77
Department of Health,Leicestershire Partnership NHS Trust,21/05/24,NURSE - BAND 2 - AGENCY,Agnes Unit,HCL WORKFORCE SOLUTIONS,SI0000869,2705.00
Department of Health,Leicestershire Partnership NHS Trust,21/05/24,NURSE - BAND 5 - AGENCY,Agnes Unit,HCL WORKFORCE SOLUTIONS,SI0000869,18614.31
Department of Health,Leicestershire Partnership NHS Trust,21/05/24,NURSE - BAND 5 - AGENCY,Ashby Ward (Bradgate Unit),HCL WORKFORCE SOLUTIONS,SI0000869,5350.82
Department of Health,Leicestershire Partnership NHS Trust,21/05/24,NURSE - BAND 5 - AGENCY,Aston Ward Bradgate Unit (Prev Welford),HCL WORKFORCE SOLUTIONS,SI0000869,464.97
Department of Health,Leicestershire Partnership NHS Trust,21/05/24,NURSE - BAND 2 - AGENCY,Beaumont Ward - Bradgate Unit,HCL WORKFORCE SOLUTIONS,SI0000869,192.56
Department of Health,Leicestershire Partnership NHS Trust,21/05/24,NURSE - BAND 5 - AGENCY,Beaumont Ward - Bradgate Unit,HCL WORKFORCE SOLUTIONS,SI0000869,6268.40
Department of Health,Leicestershire Partnership NHS Trust,21/05/24,NURSE - BAND 2 - AGENCY,Belvoir Psychiatric Intensive Care Unit,HCL WORKFORCE SOLUTIONS,SI0000869,390.39
Department of Health,Leicestershire Partnership NHS Trust,21/05/24,NURSE - BAND 5 - AGENCY,Belvoir Psychiatric Intensive Care Unit,HCL WORKFORCE SOLUTIONS,SI0000869,3547.54
Department of Health,Leicestershire Partnership NHS Trust,21/05/24,NURSE - BAND 5 - AGENCY,Bosworth Ward - Bradgate Unit,HCL WORKFORCE SOLUTIONS,SI0000869,896.48
Department of Health,Leicestershire Partnership NHS Trust,21/05/24,NURSE - BAND 5 - AGENCY,Cedar (Willows),HCL WORKFORCE SOLUTIONS,SI0000869,860.84
Department of Health,Leicestershire Partnership NHS Trust,21/05/24,Nurse - Band 6 -Agency,City West CMHT MHSOP,HCL WORKFORCE SOLUTIONS,SI0000869,1046.25
Department of Health,Leicestershire Partnership NHS Trust,21/05/24,NURSE - BAND 2 - AGENCY,Coleman Ward,HCL WORKFORCE SOLUTIONS,SI0000869,596.23
Department of Health,Leicestershire Partnership NHS Trust,21/05/24,NURSE - BAND 5 - AGENCY,Coleman Ward,HCL WORKFORCE SOLUTIONS,SI0000869,3678.59
Department of Health,Leicestershire Partnership NHS Trust,21/05/24,NURSE - BAND 5 - AGENCY,Crisis Resolution,HCL WORKFORCE SOLUTIONS,SI0000869,1043.11
Department of Health,Leicestershire Partnership NHS Trust,21/05/24,Nurse - Band 6 -Agency,Crisis Resolution,HCL WORKFORCE SOLUTIONS,SI0000869,1636.34
Department of Health,Leicestershire Partnership NHS Trust,21/05/24,NURSE - BAND 2 - AGENCY,Griffin Ward (HPC),HCL WORKFORCE SOLUTIONS,SI0000869,728.64
Department of Health,Leicestershire Partnership NHS Trust,21/05/24,NURSE - BAND 5 - AGENCY,Griffin Ward (HPC),HCL WORKFORCE SOLUTIONS,SI0000869,4108.84
Department of Health,Leicestershire Partnership NHS Trust,21/05/24,NURSE - BAND 2 - AGENCY,Gwendolen Ward,HCL WORKFORCE SOLUTIONS,SI0000869,519.40
Department of Health,Leicestershire Partnership NHS Trust,21/05/24,NURSE - BAND 5 - AGENCY,Gwendolen Ward,HCL WORKFORCE SOLUTIONS,SI0000869,5406.74
Department of Health,Leicestershire Partnership NHS Trust,21/05/24,NURSE - BAND 5 - AGENCY,Heather Ward,HCL WORKFORCE SOLUTIONS,SI0000869,1943.67
Department of Health,Leicestershire Partnership NHS Trust,21/05/24,NURSE - BAND 5 - AGENCY,Maple Ward,HCL WORKFORCE SOLUTIONS,SI0000869,884.23
Department of Health,Leicestershire Partnership NHS Trust,21/05/24,NURSE - BAND 2 - AGENCY,Mill Lodge,HCL WORKFORCE SOLUTIONS,SI0000869,572.22
Department of Health,Leicestershire Partnership NHS Trust,21/05/24,NURSE - BAND 5 - AGENCY,Mill Lodge,HCL WORKFORCE SOLUTIONS,SI0000869,882.58
Department of Health,Leicestershire Partnership NHS Trust,21/05/24,NURSE - BAND 2 - AGENCY,Phoenix Ward (HPC),HCL WORKFORCE SOLUTIONS,SI0000869,203.06
Department of Health,Leicestershire Partnership NHS Trust,21/05/24,NURSE - BAND 5 - AGENCY,Phoenix Ward (HPC),HCL WORKFORCE SOLUTIONS,SI0000869,2306.64
Department of Health,Leicestershire Partnership NHS Trust,21/05/24,NURSE - BAND 5 - AGENCY,Place Of Safety Assessment Unit,HCL WORKFORCE SOLUTIONS,SI0000869,4230.15
Department of Health,Leicestershire Partnership NHS Trust,21/05/24,NURSE - BAND 2 - AGENCY,Thornton Ward - Bradgate Unit,HCL WORKFORCE SOLUTIONS,SI0000869,185.63
Department of Health,Leicestershire Partnership NHS Trust,21/05/24,NURSE - BAND 5 - AGENCY,Thornton Ward - Bradgate Unit,HCL WORKFORCE SOLUTIONS,SI0000869,2515.53
Department of Health,Leicestershire Partnership NHS Trust,21/05/24,Nurse - Band 6 -Agency,AMH - Central Access Point,HCL WORKFORCE SOLUTIONS,SI0000873,4541.28
Department of Health,Leicestershire Partnership NHS Trust,21/05/24,Nurse - Band 6 -Agency,Adult City Central CMHT - St Peters,HCL WORKFORCE SOLUTIONS,SI0000873,237.45
Department of Health,Leicestershire Partnership NHS Trust,21/05/24,Nurse - Band 6 -Agency,Adult City East CMHT,HCL WORKFORCE SOLUTIONS,SI0000873,2765.22
Department of Health,Leicestershire Partnership NHS Trust,21/05/24,NURSE - BAND 2 - AGENCY,Agnes Unit,HCL WORKFORCE SOLUTIONS,SI0000873,3664.27
Department of Health,Leicestershire Partnership NHS Trust,21/05/24,NURSE - BAND 5 - AGENCY,Agnes Unit,HCL WORKFORCE SOLUTIONS,SI0000873,18059.87
Department of Health,Leicestershire Partnership NHS Trust,21/05/24,NURSE - BAND 5 - AGENCY,Ashby Ward (Bradgate Unit),HCL WORKFORCE SOLUTIONS,SI0000873,1731.76
Department of Health,Leicestershire Partnership NHS Trust,21/05/24,NURSE - BAND 2 - AGENCY,Beaumont Ward - Bradgate Unit,HCL WORKFORCE SOLUTIONS,SI0000873,184.31
Department of Health,Leicestershire Partnership NHS Trust,21/05/24,NURSE - BAND 5 - AGENCY,Beaumont Ward - Bradgate Unit,HCL WORKFORCE SOLUTIONS,SI0000873,4146.96
Department of Health,Leicestershire Partnership NHS Trust,21/05/24,NURSE - BAND 5 - AGENCY,Belvoir Psychiatric Intensive Care Unit,HCL WORKFORCE SOLUTIONS,SI0000873,5258.03
Department of Health,Leicestershire Partnership NHS Trust,21/05/24,NURSE - BAND 2 - AGENCY,Bosworth Ward - Bradgate Unit,HCL WORKFORCE SOLUTIONS,SI0000873,598.68
Department of Health,Leicestershire Partnership NHS Trust,21/05/24,NURSE - BAND 5 - AGENCY,Bosworth Ward - Bradgate Unit,HCL WORKFORCE SOLUTIONS,SI0000873,419.26
Department of Health,Leicestershire Partnership NHS Trust,21/05/24,NURSE - BAND 2 - AGENCY,Cedar (Willows),HCL WORKFORCE SOLUTIONS,SI0000873,277.14
Department of Health,Leicestershire Partnership NHS Trust,21/05/24,Nurse - Band 6 -Agency,City East CMHT MHSOP,HCL WORKFORCE SOLUTIONS,SI0000873,1046.22
Department of Health,Leicestershire Partnership NHS Trust,21/05/24,NURSE - BAND 2 - AGENCY,Coleman Ward,HCL WORKFORCE SOLUTIONS,SI0000873,134.81
Department of Health,Leicestershire Partnership NHS Trust,21/05/24,NURSE - BAND 5 - AGENCY,Coleman Ward,HCL WORKFORCE SOLUTIONS,SI0000873,556.89
Department of Health,Leicestershire Partnership NHS Trust,21/05/24,NURSE - BAND 5 - AGENCY,Crisis Resolution,HCL WORKFORCE SOLUTIONS,SI0000873,698.43
Department of Health,Leicestershire Partnership NHS Trust,21/05/24,Nurse - Band 6 -Agency,Crisis Resolution,HCL WORKFORCE SOLUTIONS,SI0000873,1633.49
Department of Health,Leicestershire Partnership NHS Trust,21/05/24,NURSE - BAND 2 - AGENCY,Griffin Ward (HPC),HCL WORKFORCE SOLUTIONS,SI0000873,195.20
Department of Health,Leicestershire Partnership NHS Trust,21/05/24,NURSE - BAND 5 - AGENCY,Griffin Ward (HPC),HCL WORKFORCE SOLUTIONS,SI0000873,1873.45
Department of Health,Leicestershire Partnership NHS Trust,21/05/24,NURSE - BAND 2 - AGENCY,Gwendolen Ward,HCL WORKFORCE SOLUTIONS,SI0000873,390.39
Department of Health,Leicestershire Partnership NHS Trust,21/05/24,NURSE - BAND 5 - AGENCY,Gwendolen Ward,HCL WORKFORCE SOLUTIONS,SI0000873,4654.31
Department of Health,Leicestershire Partnership NHS Trust,21/05/24,NURSE - BAND 5 - AGENCY,Heather Ward,HCL WORKFORCE SOLUTIONS,SI0000873,913.80
Department of Health,Leicestershire Partnership NHS Trust,21/05/24,NURSE - BAND 2 - AGENCY,Langley Ward,HCL WORKFORCE SOLUTIONS,SI0000873,184.31
Department of Health,Leicestershire Partnership NHS Trust,21/05/24,NURSE - BAND 5 - AGENCY,Langley Ward,HCL WORKFORCE SOLUTIONS,SI0000873,926.07
Department of Health,Leicestershire Partnership NHS Trust,21/05/24,NURSE - BAND 2 - AGENCY,Maple Ward,HCL WORKFORCE SOLUTIONS,SI0000873,247.05
Department of Health,Leicestershire Partnership NHS Trust,21/05/24,NURSE - BAND 5 - AGENCY,Maple Ward,HCL WORKFORCE SOLUTIONS,SI0000873,464.97
Department of Health,Leicestershire Partnership NHS Trust,21/05/24,NURSE - BAND 5 - AGENCY,Mill Lodge,HCL WORKFORCE SOLUTIONS,SI0000873,928.33
Department of Health,Leicestershire Partnership NHS Trust,21/05/24,NURSE - BAND 2 - AGENCY,Phoenix Ward (HPC),HCL WORKFORCE SOLUTIONS,SI0000873,184.31
Department of Health,Leicestershire Partnership NHS Trust,21/05/24,NURSE - BAND 5 - AGENCY,Phoenix Ward (HPC),HCL WORKFORCE SOLUTIONS,SI0000873,2334.66
Department of Health,Leicestershire Partnership NHS Trust,21/05/24,NURSE - BAND 5 - AGENCY,Place Of Safety Assessment Unit,HCL WORKFORCE SOLUTIONS,SI0000873,3412.33
Department of Health,Leicestershire Partnership NHS Trust,21/05/24,NURSE - BAND 2 - AGENCY,Thornton Ward - Bradgate Unit,HCL WORKFORCE SOLUTIONS,SI0000873,192.56
Department of Health,Leicestershire Partnership NHS Trust,21/05/24,NURSE - BAND 5 - AGENCY,Thornton Ward - Bradgate Unit,HCL WORKFORCE SOLUTIONS,SI0000873,554.07
Department of Health,Leicestershire Partnership NHS Trust,21/05/24,NURSE - BAND 2 - AGENCY,Urgent Care Hub,HCL WORKFORCE SOLUTIONS,SI0000873,197.54
Department of Health,Leicestershire Partnership NHS Trust,21/05/24,Nurse - Band 6 -Agency,CAMHS Waiting List Monies,HCL WORKFORCE SOLUTIONS,WFIP000015,12288.90
Department of Health,Leicestershire Partnership NHS Trust,21/05/24,Nurse - Band 7 - Agency,City West CMHT MHSOP,HCL WORKFORCE SOLUTIONS,WFIP000015,1095.00
Department of Health,Leicestershire Partnership NHS Trust,21/05/24,Nurse - Band 6 -Agency,Crisis Response and Home Treatment,HCL WORKFORCE SOLUTIONS,WFIP000015,12092.86
Department of Health,Leicestershire Partnership NHS Trust,21/05/24,Nurse - Band 6 -Agency,AMH - Central Access Point,HCL WORKFORCE SOLUTIONS,SI0000877,2733.73
Department of Health,Leicestershire Partnership NHS Trust,21/05/24,Nurse - Band 6 -Agency,Adult City Central CMHT - St Peters,HCL WORKFORCE SOLUTIONS,SI0000877,186.09
Department of Health,Leicestershire Partnership NHS Trust,21/05/24,Nurse - Band 6 -Agency,Adult City East CMHT,HCL WORKFORCE SOLUTIONS,SI0000877,2765.46
Department of Health,Leicestershire Partnership NHS Trust,21/05/24,NURSE - BAND 2 - AGENCY,Agnes Unit,HCL WORKFORCE SOLUTIONS,SI0000877,3678.19
Department of Health,Leicestershire Partnership NHS Trust,21/05/24,NURSE - BAND 5 - AGENCY,Agnes Unit,HCL WORKFORCE SOLUTIONS,SI0000877,26127.93
Department of Health,Leicestershire Partnership NHS Trust,21/05/24,NURSE - BAND 5 - AGENCY,Ashby Ward (Bradgate Unit),HCL WORKFORCE SOLUTIONS,SI0000877,3628.54
Department of Health,Leicestershire Partnership NHS Trust,21/05/24,NURSE - BAND 5 - AGENCY,Aston Ward Bradgate Unit (Prev Welford),HCL WORKFORCE SOLUTIONS,SI0000877,464.97
Department of Health,Leicestershire Partnership NHS Trust,21/05/24,NURSE - BAND 2 - AGENCY,Beaumont Ward - Bradgate Unit,HCL WORKFORCE SOLUTIONS,SI0000877,184.31
Department of Health,Leicestershire Partnership NHS Trust,21/05/24,NURSE - BAND 5 - AGENCY,Beaumont Ward - Bradgate Unit,HCL WORKFORCE SOLUTIONS,SI0000877,4120.05
Department of Health,Leicestershire Partnership NHS Trust,21/05/24,NURSE - BAND 2 - AGENCY,Belvoir Psychiatric Intensive Care Unit,HCL WORKFORCE SOLUTIONS,SI0000877,178.70
Department of Health,Leicestershire Partnership NHS Trust,21/05/24,NURSE - BAND 5 - AGENCY,Belvoir Psychiatric Intensive Care Unit,HCL WORKFORCE SOLUTIONS,SI0000877,3416.90
Department of Health,Leicestershire Partnership NHS Trust,21/05/24,NURSE - BAND 2 - AGENCY,Bosworth Ward - Bradgate Unit,HCL WORKFORCE SOLUTIONS,SI0000877,191.07
Department of Health,Leicestershire Partnership NHS Trust,21/05/24,NURSE - BAND 5 - AGENCY,Bosworth Ward - Bradgate Unit,HCL WORKFORCE SOLUTIONS,SI0000877,753.10
Department of Health,Leicestershire Partnership NHS Trust,21/05/24,NURSE - BAND 5 - AGENCY,Cedar (Willows),HCL WORKFORCE SOLUTIONS,SI0000877,271.82
Department of Health,Leicestershire Partnership NHS Trust,21/05/24,Nurse - Band 6 -Agency,City East CMHT MHSOP,HCL WORKFORCE SOLUTIONS,SI0000877,1046.25
Department of Health,Leicestershire Partnership NHS Trust,21/05/24,NURSE - BAND 5 - AGENCY,Coleman Ward,HCL WORKFORCE SOLUTIONS,SI0000877,789.85
Department of Health,Leicestershire Partnership NHS Trust,21/05/24,NURSE - BAND 5 - AGENCY,Crisis Resolution,HCL WORKFORCE SOLUTIONS,SI0000877,888.84
Department of Health,Leicestershire Partnership NHS Trust,21/05/24,NURSE - BAND 2 - AGENCY,Griffin Ward (HPC),HCL WORKFORCE SOLUTIONS,SI0000877,176.06
Department of Health,Leicestershire Partnership NHS Trust,21/05/24,NURSE - BAND 5 - AGENCY,Griffin Ward (HPC),HCL WORKFORCE SOLUTIONS,SI0000877,2141.99
Department of Health,Leicestershire Partnership NHS Trust,21/05/24,NURSE - BAND 2 - AGENCY,Gwendolen Ward,HCL WORKFORCE SOLUTIONS,SI0000877,176.02
Department of Health,Leicestershire Partnership NHS Trust,21/05/24,NURSE - BAND 5 - AGENCY,Gwendolen Ward,HCL WORKFORCE SOLUTIONS,SI0000877,2664.93
Department of Health,Leicestershire Partnership NHS Trust,21/05/24,NURSE - BAND 2 - AGENCY,Heather Ward,HCL WORKFORCE SOLUTIONS,SI0000877,195.20
Department of Health,Leicestershire Partnership NHS Trust,21/05/24,NURSE - BAND 5 - AGENCY,Heather Ward,HCL WORKFORCE SOLUTIONS,SI0000877,838.51
Department of Health,Leicestershire Partnership NHS Trust,21/05/24,NURSE - BAND 2 - AGENCY,Maple Ward,HCL WORKFORCE SOLUTIONS,SI0000877,192.56
Department of Health,Leicestershire Partnership NHS Trust,21/05/24,NURSE - BAND 5 - AGENCY,Mill Lodge,HCL WORKFORCE SOLUTIONS,SI0000877,1356.55
Department of Health,Leicestershire Partnership NHS Trust,21/05/24,NURSE - BAND 5 - AGENCY,Phoenix Ward (HPC),HCL WORKFORCE SOLUTIONS,SI0000877,838.51
Department of Health,Leicestershire Partnership NHS Trust,21/05/24,NURSE - BAND 2 - AGENCY,Place Of Safety Assessment Unit,HCL WORKFORCE SOLUTIONS,SI0000877,197.54
Department of Health,Leicestershire Partnership NHS Trust,21/05/24,NURSE - BAND 5 - AGENCY,Place Of Safety Assessment Unit,HCL WORKFORCE SOLUTIONS,SI0000877,3125.00
Department of Health,Leicestershire Partnership NHS Trust,21/05/24,NURSE - BAND 2 - AGENCY,Sycamore (Willows),HCL WORKFORCE SOLUTIONS,SI0000877,195.20
Department of Health,Leicestershire Partnership NHS Trust,21/05/24,NURSE - BAND 5 - AGENCY,Sycamore (Willows),HCL WORKFORCE SOLUTIONS,SI0000877,920.47
Department of Health,Leicestershire Partnership NHS Trust,21/05/24,NURSE - BAND 2 - AGENCY,Thornton Ward - Bradgate Unit,HCL WORKFORCE SOLUTIONS,SI0000877,192.56
Department of Health,Leicestershire Partnership NHS Trust,21/05/24,NURSE - BAND 5 - AGENCY,Thornton Ward - Bradgate Unit,HCL WORKFORCE SOLUTIONS,SI0000877,419.26
Department of Health,Leicestershire Partnership NHS Trust,21/05/24,Nurse - Band 6 -Agency,AMH - Central Access Point,HCL WORKFORCE SOLUTIONS,WFIP000027,10341.57
Department of Health,Leicestershire Partnership NHS Trust,21/05/24,Nurse - Band 6 -Agency,Adult City Central CMHT - St Peters,HCL WORKFORCE SOLUTIONS,WFIP000027,1479.54
Department of Health,Leicestershire Partnership NHS Trust,21/05/24,Nurse - Band 6 -Agency,Adult City East CMHT,HCL WORKFORCE SOLUTIONS,WFIP000027,1387.89
Department of Health,Leicestershire Partnership NHS Trust,21/05/24,Nurse - Band 6 -Agency,Adult County South Leicestershire CMHT,HCL WORKFORCE SOLUTIONS,WFIP000027,2936.84
Department of Health,Leicestershire Partnership NHS Trust,21/05/24,Nurse - Band 6 -Agency,City West CMHT MHSOP,HCL WORKFORCE SOLUTIONS,WFIP000027,2498.20
Department of Health,Leicestershire Partnership NHS Trust,21/05/24,Nurse - Band 6 -Agency,Crisis Resolution,HCL WORKFORCE SOLUTIONS,WFIP000027,6940.81
Department of Health,Leicestershire Partnership NHS Trust,21/05/24,Nurse - Band 6 -Agency,Melton & Rutland CMHT MHSOP,HCL WORKFORCE SOLUTIONS,WFIP000027,1386.96
Department of Health,Leicestershire Partnership NHS Trust,21/05/24,Nurse - Band 6 -Agency,Mental Health Liaison Team,HCL WORKFORCE SOLUTIONS,WFIP000027,954.62
Department of Health,Leicestershire Partnership NHS Trust,21/05/24,Nurse - Band 6 -Agency,AMH - Central Access Point,HCL WORKFORCE SOLUTIONS,WFIP000014,11478.45
Department of Health,Leicestershire Partnership NHS Trust,21/05/24,Nurse - Band 6 -Agency,Adult City East CMHT,HCL WORKFORCE SOLUTIONS,WFIP000014,1110.31
Department of Health,Leicestershire Partnership NHS Trust,21/05/24,Nurse - Band 6 -Agency,Adult County South Leicestershire CMHT,HCL WORKFORCE SOLUTIONS,WFIP000014,2438.36
Department of Health,Leicestershire Partnership NHS Trust,21/05/24,Nurse - Band 6 -Agency,City West CMHT MHSOP,HCL WORKFORCE SOLUTIONS,WFIP000014,4273.11
Department of Health,Leicestershire Partnership NHS Trust,21/05/24,Nurse - Band 6 -Agency,Crisis Resolution,HCL WORKFORCE SOLUTIONS,WFIP000014,10479.23
Department of Health,Leicestershire Partnership NHS Trust,21/05/24,Nurse - Band 6 -Agency,Melton & Rutland CMHT MHSOP,HCL WORKFORCE SOLUTIONS,WFIP000014,986.96
Department of Health,Leicestershire Partnership NHS Trust,21/05/24,Nurse - Band 6 -Agency,Mental Health Liaison Team,HCL WORKFORCE SOLUTIONS,WFIP000014,2202.48
Department of Health,Leicestershire Partnership NHS Trust,21/05/24,Nurse - Band 6 -Agency,AMH - Central Access Point,HCL WORKFORCE SOLUTIONS,WFIP000016,3653.90
Department of Health,Leicestershire Partnership NHS Trust,21/05/24,NURSE - BAND 5 - AGENCY,Adult City Central CMHT - St Peters,HCL WORKFORCE SOLUTIONS,WFIP000016,236.38
Department of Health,Leicestershire Partnership NHS Trust,21/05/24,Nurse - Band 6 -Agency,Adult City Central CMHT - St Peters,HCL WORKFORCE SOLUTIONS,WFIP000016,1507.74
Department of Health,Leicestershire Partnership NHS Trust,21/05/24,Nurse - Band 6 -Agency,Adult City East CMHT,HCL WORKFORCE SOLUTIONS,WFIP000016,1055.35
Department of Health,Leicestershire Partnership NHS Trust,21/05/24,NURSE - BAND 2 - AGENCY,Agnes Unit,HCL WORKFORCE SOLUTIONS,WFIP000016,1784.65
Department of Health,Leicestershire Partnership NHS Trust,21/05/24,NURSE - BAND 5 - AGENCY,Agnes Unit,HCL WORKFORCE SOLUTIONS,WFIP000016,15629.53
Department of Health,Leicestershire Partnership NHS Trust,21/05/24,NURSE - BAND 2 - AGENCY,Ashby Ward (Bradgate Unit),HCL WORKFORCE SOLUTIONS,WFIP000016,247.05
Department of Health,Leicestershire Partnership NHS Trust,21/05/24,NURSE - BAND 5 - AGENCY,Ashby Ward (Bradgate Unit),HCL WORKFORCE SOLUTIONS,WFIP000016,1349.20
Department of Health,Leicestershire Partnership NHS Trust,21/05/24,NURSE - BAND 5 - AGENCY,Aston Ward Bradgate Unit (Prev Welford),HCL WORKFORCE SOLUTIONS,WFIP000016,509.07
Department of Health,Leicestershire Partnership NHS Trust,21/05/24,NURSE - BAND 2 - AGENCY,Beaumont Ward - Bradgate Unit,HCL WORKFORCE SOLUTIONS,WFIP000016,277.14
Department of Health,Leicestershire Partnership NHS Trust,21/05/24,NURSE - BAND 5 - AGENCY,Beaumont Ward - Bradgate Unit,HCL WORKFORCE SOLUTIONS,WFIP000016,4546.56
Department of Health,Leicestershire Partnership NHS Trust,21/05/24,NURSE - BAND 5 - AGENCY,Belvoir Psychiatric Intensive Care Unit,HCL WORKFORCE SOLUTIONS,WFIP000016,2580.07
Department of Health,Leicestershire Partnership NHS Trust,21/05/24,Nurse - Band 6 -Agency,City East CMHT MHSOP,HCL WORKFORCE SOLUTIONS,WFIP000016,1046.25
Department of Health,Leicestershire Partnership NHS Trust,21/05/24,NURSE - BAND 5 - AGENCY,Coleman Ward,HCL WORKFORCE SOLUTIONS,WFIP000016,1570.61
Department of Health,Leicestershire Partnership NHS Trust,21/05/24,NURSE - BAND 5 - AGENCY,Griffin Ward (HPC),HCL WORKFORCE SOLUTIONS,WFIP000016,2041.86
Department of Health,Leicestershire Partnership NHS Trust,21/05/24,NURSE - BAND 2 - AGENCY,Gwendolen Ward,HCL WORKFORCE SOLUTIONS,WFIP000016,367.79
Department of Health,Leicestershire Partnership NHS Trust,21/05/24,NURSE - BAND 5 - AGENCY,Gwendolen Ward,HCL WORKFORCE SOLUTIONS,WFIP000016,2566.68
Department of Health,Leicestershire Partnership NHS Trust,21/05/24,NURSE - BAND 5 - AGENCY,Heather Ward,HCL WORKFORCE SOLUTIONS,WFIP000016,2399.67
Department of Health,Leicestershire Partnership NHS Trust,21/05/24,NURSE - BAND 2 - AGENCY,Maple Ward,HCL WORKFORCE SOLUTIONS,WFIP000016,195.20
Department of Health,Leicestershire Partnership NHS Trust,21/05/24,NURSE - BAND 2 - AGENCY,Mill Lodge,HCL WORKFORCE SOLUTIONS,WFIP000016,195.20
Department of Health,Leicestershire Partnership NHS Trust,21/05/24,NURSE - BAND 5 - AGENCY,Mill Lodge,HCL WORKFORCE SOLUTIONS,WFIP000016,761.96
Department of Health,Leicestershire Partnership NHS Trust,21/05/24,NURSE - BAND 2 - AGENCY,Phoenix Ward (HPC),HCL WORKFORCE SOLUTIONS,WFIP000016,192.56
Department of Health,Leicestershire Partnership NHS Trust,21/05/24,NURSE - BAND 5 - AGENCY,Phoenix Ward (HPC),HCL WORKFORCE SOLUTIONS,WFIP000016,2339.46
Department of Health,Leicestershire Partnership NHS Trust,21/05/24,NURSE - BAND 5 - AGENCY,Place Of Safety Assessment Unit,HCL WORKFORCE SOLUTIONS,WFIP000016,2663.37
Department of Health,Leicestershire Partnership NHS Trust,21/05/24,NURSE - BAND 2 - AGENCY,Stewart House,HCL WORKFORCE SOLUTIONS,WFIP000016,273.05
Department of Health,Leicestershire Partnership NHS Trust,21/05/24,NURSE - BAND 2 - AGENCY,Thornton Ward - Bradgate Unit,HCL WORKFORCE SOLUTIONS,WFIP000016,195.20
Department of Health,Leicestershire Partnership NHS Trust,21/05/24,NURSE - BAND 5 - AGENCY,Thornton Ward - Bradgate Unit,HCL WORKFORCE SOLUTIONS,WFIP000016,1257.77
Department of Health,Leicestershire Partnership NHS Trust,21/05/24,Nurse - Band 6 -Agency,AMH - Central Access Point,HCL WORKFORCE SOLUTIONS,WFIP000025,5740.57
Department of Health,Leicestershire Partnership NHS Trust,21/05/24,Nurse - Band 6 -Agency,Adult City Central CMHT - St Peters,HCL WORKFORCE SOLUTIONS,WFIP000025,1479.54
Department of Health,Leicestershire Partnership NHS Trust,21/05/24,Nurse - Band 6 -Agency,Adult City East CMHT,HCL WORKFORCE SOLUTIONS,WFIP000025,1110.31
Department of Health,Leicestershire Partnership NHS Trust,21/05/24,Nurse - Band 6 -Agency,Adult County South Leicestershire CMHT,HCL WORKFORCE SOLUTIONS,WFIP000025,3692.75
Department of Health,Leicestershire Partnership NHS Trust,21/05/24,Nurse - Band 6 -Agency,City West CMHT MHSOP,HCL WORKFORCE SOLUTIONS,WFIP000025,5300.20
Department of Health,Leicestershire Partnership NHS Trust,21/05/24,Nurse - Band 6 -Agency,Crisis Resolution,HCL WORKFORCE SOLUTIONS,WFIP000025,5433.96
Department of Health,Leicestershire Partnership NHS Trust,21/05/24,Nurse - Band 6 -Agency,Melton & Rutland CMHT MHSOP,HCL WORKFORCE SOLUTIONS,WFIP000025,1387.88
Department of Health,Leicestershire Partnership NHS Trust,21/05/24,Nurse - Band 6 -Agency,Mental Health Liaison Team,HCL WORKFORCE SOLUTIONS,WFIP000025,1959.53
Department of Health,Leicestershire Partnership NHS Trust,21/05/24,Nurse - Band 6 -Agency,AMH - Central Access Point,HCL WORKFORCE SOLUTIONS,WFIP000023,8521.08
Department of Health,Leicestershire Partnership NHS Trust,21/05/24,Nurse - Band 6 -Agency,Adult City East CMHT,HCL WORKFORCE SOLUTIONS,WFIP000023,1387.89
Department of Health,Leicestershire Partnership NHS Trust,21/05/24,Nurse - Band 6 -Agency,Adult County South Leicestershire CMHT,HCL WORKFORCE SOLUTIONS,WFIP000023,2678.96
Department of Health,Leicestershire Partnership NHS Trust,21/05/24,Nurse - Band 6 -Agency,City West CMHT MHSOP,HCL WORKFORCE SOLUTIONS,WFIP000023,2752.76
Department of Health,Leicestershire Partnership NHS Trust,21/05/24,Nurse - Band 6 -Agency,Crisis Resolution,HCL WORKFORCE SOLUTIONS,WFIP000023,6847.06
Department of Health,Leicestershire Partnership NHS Trust,21/05/24,Nurse - Band 6 -Agency,Melton & Rutland CMHT MHSOP,HCL WORKFORCE SOLUTIONS,WFIP000023,762.77
Department of Health,Leicestershire Partnership NHS Trust,21/05/24,FP10'S,Adult City Drugs,NHS BUS SERVICES AUTHORITY,1000081203,5969.22
Department of Health,Leicestershire Partnership NHS Trust,21/05/24,FP10'S,Adult County Drugs,NHS BUS SERVICES AUTHORITY,1000081203,55325.97
Department of Health,Leicestershire Partnership NHS Trust,21/05/24,FP10'S,CAMHS Outpatients,NHS BUS SERVICES AUTHORITY,1000081203,20606.30
Department of Health,Leicestershire Partnership NHS Trust,21/05/24,FP10'S,Community Paediatrics,NHS BUS SERVICES AUTHORITY,1000081203,38575.93
Department of Health,Leicestershire Partnership NHS Trust,21/05/24,FP10'S,Dementia Related Drugs and Investigations,NHS BUS SERVICES AUTHORITY,1000081203,3071.91
Department of Health,Leicestershire Partnership NHS Trust,21/05/24,FP10'S,Eating Disorders Outpatient Service,NHS BUS SERVICES AUTHORITY,1000081203,752.82
Department of Health,Leicestershire Partnership NHS Trust,21/05/24,FP10'S,Forensic Services - Community,NHS BUS SERVICES AUTHORITY,1000081203,5114.01
Department of Health,Leicestershire Partnership NHS Trust,21/05/24,FP10'S,LAC,NHS BUS SERVICES AUTHORITY,1000081203,68.42
Department of Health,Leicestershire Partnership NHS Trust,21/05/24,FP10'S,Lough Swithland Ward,NHS BUS SERVICES AUTHORITY,1000081203,7.62
Department of Health,Leicestershire Partnership NHS Trust,21/05/24,FP10'S,PIER Team - Early Intervention Services,NHS BUS SERVICES AUTHORITY,1000081203,15320.35
Department of Health,Leicestershire Partnership NHS Trust,21/05/24,FP10'S,Snr Med Staff (Inc Med Reps),NHS BUS SERVICES AUTHORITY,1000081203,5201.72
Department of Health,Leicestershire Partnership NHS Trust,23/05/24,Lease Rents (IFRS16),"OSL House (P54, LPT)",CABOT TRUSTEES LTD,079,43134.00
Department of Health,Leicestershire Partnership NHS Trust,23/05/24,Other Non-Medical Supplies & Services,Inter Unit I & E Distribution,UHL NHS TRUST (RWE),L0282231,94664.84
Department of Health,Leicestershire Partnership NHS Trust,23/05/24,NURSE - BAND 5 - AGENCY,Unallocated Budgets,HCL WORKFORCE SOLUTIONS,SCM001033,-114223.57
Department of Health,Leicestershire Partnership NHS Trust,23/05/24,Legal Fees,Chief Executives Office,BROWNE JACOBSON LLP,1071037,70066.32
Department of Health,Leicestershire Partnership NHS Trust,24/05/24,Network Costs - WAN Maint,HIS Infrastructure,VIRGIN MEDIA BUSINESS,262421-219,53301.72
Department of Health,Leicestershire Partnership NHS Trust,24/05/24,Network Costs - WAN Maint,HIS Infrastructure,VIRGIN MEDIA BUSINESS,262421-220,35719.94
Department of Health,Leicestershire Partnership NHS Trust,24/05/24,Landline Telephone Rental / Calls,"Beaumont Leys Health Centre (P94, LPT)",VIRGIN MEDIA BUSINESS,853083001/004/0524,340.75
Department of Health,Leicestershire Partnership NHS Trust,24/05/24,Landline Telephone Rental / Calls,"Bennion Centre (including Forest Grange Day Unit) (P8, LPT)",VIRGIN MEDIA BUSINESS,853083001/004/0524,8.77
Department of Health,Leicestershire Partnership NHS Trust,24/05/24,Landline Telephone Rental / Calls,"Bradgate Unit (including Glenvale day Unit) (P7, LPT)",VIRGIN MEDIA BUSINESS,853083001/004/0524,5658.22
Department of Health,Leicestershire Partnership NHS Trust,24/05/24,Landline Telephone Rental / Calls,Braunstone Health and Social Care Centre (Part) (PROPCO),VIRGIN MEDIA BUSINESS,853083001/004/0524,1099.22
Department of Health,Leicestershire Partnership NHS Trust,24/05/24,Landline Telephone Rental / Calls,Bridge Park Plaza - First Floor (LPT),VIRGIN MEDIA BUSINESS,853083001/004/0524,2584.92
Department of Health,Leicestershire Partnership NHS Trust,24/05/24,Landline Telephone Rental / Calls,"Coalville Community Hospital (P138, LPT)",VIRGIN MEDIA BUSINESS,853083001/004/0524,85.14
Department of Health,Leicestershire Partnership NHS Trust,24/05/24,Landline Telephone Rental / Calls,"Coalville Health Centre (P121, LPT)",VIRGIN MEDIA BUSINESS,853083001/004/0524,7.74
Department of Health,Leicestershire Partnership NHS Trust,24/05/24,Landline Telephone Rental / Calls,County Hall,VIRGIN MEDIA BUSINESS,853083001/004/0524,1507.99
Department of Health,Leicestershire Partnership NHS Trust,24/05/24,Landline Telephone Rental / Calls,Estates & Facilities Central,VIRGIN MEDIA BUSINESS,853083001/004/0524,4.00
Department of Health,Leicestershire Partnership NHS Trust,24/05/24,Landline Telephone Rental / Calls,"Evington Centre (P6, LPT)",VIRGIN MEDIA BUSINESS,853083001/004/0524,204.06
Department of Health,Leicestershire Partnership NHS Trust,24/05/24,Landline Telephone Rental / Calls,HIS,VIRGIN MEDIA BUSINESS,853083001/004/0524,2969.86
Department of Health,Leicestershire Partnership NHS Trust,24/05/24,Landline Telephone Rental / Calls,"Hinckley and Bosworth Community Hospital (Sunnyside) (P133, LPT)",VIRGIN MEDIA BUSINESS,853083001/004/0524,919.66
Department of Health,Leicestershire Partnership NHS Trust,24/05/24,Landline Telephone Rental / Calls,"Hynca Lodge (P33, LPT)",VIRGIN MEDIA BUSINESS,853083001/004/0524,415.72
Department of Health,Leicestershire Partnership NHS Trust,24/05/24,Landline Telephone Rental / Calls,"Loughborough Hospital (P136, LPT)",VIRGIN MEDIA BUSINESS,853083001/004/0524,2553.53
Department of Health,Leicestershire Partnership NHS Trust,24/05/24,Landline Telephone Rental / Calls,Mawson House (LPT),VIRGIN MEDIA BUSINESS,853083001/004/0524,435.04
Department of Health,Leicestershire Partnership NHS Trust,24/05/24,Landline Telephone Rental / Calls,Merlyn Vaz Centre (CHP),VIRGIN MEDIA BUSINESS,853083001/004/0524,1285.58
Department of Health,Leicestershire Partnership NHS Trust,24/05/24,Landline Telephone Rental / Calls,"Mett Centre (P49, LPT)",VIRGIN MEDIA BUSINESS,853083001/004/0524,104.04
Department of Health,Leicestershire Partnership NHS Trust,24/05/24,Landline Telephone Rental / Calls,New Parks Health Centre (PROPCO),VIRGIN MEDIA BUSINESS,853083001/004/0524,1387.97
Department of Health,Leicestershire Partnership NHS Trust,24/05/24,Landline Telephone Rental / Calls,"OSL House (P54, LPT)",VIRGIN MEDIA BUSINESS,853083001/004/0524,901.75
Department of Health,Leicestershire Partnership NHS Trust,24/05/24,Landline Telephone Rental / Calls,"Orchard Resource Centre (P15, LPT)",VIRGIN MEDIA BUSINESS,853083001/004/0524,518.51
Department of Health,Leicestershire Partnership NHS Trust,24/05/24,Landline Telephone Rental / Calls,Pasley Road Health Centre (PROPCO),VIRGIN MEDIA BUSINESS,853083001/004/0524,114.94
Department of Health,Leicestershire Partnership NHS Trust,24/05/24,Landline Telephone Rental / Calls,"Prince Philip House (P96, LPT)",VIRGIN MEDIA BUSINESS,853083001/004/0524,1114.86
Department of Health,Leicestershire Partnership NHS Trust,24/05/24,Landline Telephone Rental / Calls,Rushey Mead Health Centre (PROPCO),VIRGIN MEDIA BUSINESS,853083001/004/0524,69.35
Department of Health,Leicestershire Partnership NHS Trust,24/05/24,Landline Telephone Rental / Calls,"Springfield Road Health Centre (P92, LPT)",VIRGIN MEDIA BUSINESS,853083001/004/0524,345.88
Department of Health,Leicestershire Partnership NHS Trust,24/05/24,Landline Telephone Rental / Calls,"St Peters Health Center (Part 1st and 2nd floors) (P66, LPT)",VIRGIN MEDIA BUSINESS,853083001/004/0524,915.85
Department of Health,Leicestershire Partnership NHS Trust,24/05/24,Landline Telephone Rental / Calls,"Swithland House - London Road 352 (P44, LPT)",VIRGIN MEDIA BUSINESS,853083001/004/0524,242.78
Department of Health,Leicestershire Partnership NHS Trust,24/05/24,Landline Telephone Rental / Calls,"The Cedars (P19, LPT)",VIRGIN MEDIA BUSINESS,853083001/004/0524,679.73
Department of Health,Leicestershire Partnership NHS Trust,24/05/24,Landline Telephone Rental / Calls,"The Willows - Cordelia Close (P22, LPT)",VIRGIN MEDIA BUSINESS,853083001/004/0524,46.44
Department of Health,Leicestershire Partnership NHS Trust,24/05/24,Landline Telephone Rental / Calls,"Valentine Centre (P3, LPT)",VIRGIN MEDIA BUSINESS,853083001/004/0524,154.80
Department of Health,Leicestershire Partnership NHS Trust,24/05/24,Landline Telephone Rental / Calls,Warren Park Way 25 (PROPCO),VIRGIN MEDIA BUSINESS,853083001/004/0524,693.49
Department of Health,Leicestershire Partnership NHS Trust,24/05/24,Landline Telephone Rental / Calls,"Westcotes Group -Westcotes House (P78, LPT)",VIRGIN MEDIA BUSINESS,853083001/004/0524,823.81
Department of Health,Leicestershire Partnership NHS Trust,24/05/24,Landline Telephone Rental / Calls,"Winstanley Drive Health Centre (P8, LPT)",VIRGIN MEDIA BUSINESS,853083001/004/0524,46.44
Department of Health,Leicestershire Partnership NHS Trust,28/05/24,Lease Rents (IFRS16),Bridge Park Plaza - First Floor (LPT),FISHER HARG PROCT LTD,981857,80507.52
Department of Health,Leicestershire Partnership NHS Trust,28/05/24,Building & Engineering Equipment Maintenance / Repairs,Estates & Maintenance Team,ACORN MECHANICAL PIPEWORK SERVICES,967290,44336.26
Department of Health,Leicestershire Partnership NHS Trust,28/05/24,Crs_NHS_LT1y -Resus Inventory Supplied.,Balance Sheet Collection,SUPPLY CHAIN CO LTD,1125052541,40004.57
Department of Health,Leicestershire Partnership NHS Trust,29/05/24,Admin & Clerical - Band 4,Business Development,NORTHAMPTONSHIRE HC NHS FT (RP1),5155631,1290.76
Department of Health,Leicestershire Partnership NHS Trust,29/05/24,DIRECTOR,Business Development,NORTHAMPTONSHIRE HC NHS FT (RP1),5155631,5507.21
Department of Health,Leicestershire Partnership NHS Trust,29/05/24,Admin & Clerical - Band 5,Chief Executives Office,NORTHAMPTONSHIRE HC NHS FT (RP1),5155631,1464.88
Department of Health,Leicestershire Partnership NHS Trust,29/05/24,Admin & Clerical - Band 6,Chief Executives Office,NORTHAMPTONSHIRE HC NHS FT (RP1),5155631,1598.08
Department of Health,Leicestershire Partnership NHS Trust,29/05/24,CHIEF EXECUTIVE'S REMUNERATION,Chief Executives Office,NORTHAMPTONSHIRE HC NHS FT (RP1),5155631,13143.26
Department of Health,Leicestershire Partnership NHS Trust,29/05/24,DIRECTOR,Chief Executives Office,NORTHAMPTONSHIRE HC NHS FT (RP1),5155631,27420.82
Department of Health,Leicestershire Partnership NHS Trust,29/05/24,Senior Manager - Band 8C,Director of Finance,NORTHAMPTONSHIRE HC NHS FT (RP1),5155631,3873.59
Department of Health,Leicestershire Partnership NHS Trust,29/05/24,Admin & Clerical - Band 5,HIS Management Team,NORTHAMPTONSHIRE HC NHS FT (RP1),5155631,1171.89
Department of Health,Leicestershire Partnership NHS Trust,29/05/24,Senior Manager - Band 8D,HIS Management Team,NORTHAMPTONSHIRE HC NHS FT (RP1),5155631,6687.40
Department of Health,Leicestershire Partnership NHS Trust,29/05/24,CHAIRMAN'S REMUNERATION,Non-Execs,NORTHAMPTONSHIRE HC NHS FT (RP1),5155631,2721.58
Department of Health,Leicestershire Partnership NHS Trust,30/05/24,NURSE - BAND 2 - AGENCY,Beechwood Ward,HCL WORKFORCE SOLUTIONS,WFIP000050,1498.86
Department of Health,Leicestershire Partnership NHS Trust,30/05/24,NURSE - BAND 5 - AGENCY,Beechwood Ward,HCL WORKFORCE SOLUTIONS,WFIP000050,431.09
Department of Health,Leicestershire Partnership NHS Trust,30/05/24,NURSE - BAND 5 - AGENCY,City Planned Care - East,HCL WORKFORCE SOLUTIONS,WFIP000050,36354.83
Department of Health,Leicestershire Partnership NHS Trust,30/05/24,NURSE - BAND 5 - AGENCY,City Planned Care - West,HCL WORKFORCE SOLUTIONS,WFIP000050,44315.21
Department of Health,Leicestershire Partnership NHS Trust,30/05/24,NURSE - BAND 2 - AGENCY,Clarendon Ward,HCL WORKFORCE SOLUTIONS,WFIP000050,1183.88
Department of Health,Leicestershire Partnership NHS Trust,30/05/24,NURSE - BAND 5 - AGENCY,Clarendon Ward,HCL WORKFORCE SOLUTIONS,WFIP000050,766.82
Department of Health,Leicestershire Partnership NHS Trust,30/05/24,NURSE - BAND 2 - AGENCY,Coalville Snibston Ward,HCL WORKFORCE SOLUTIONS,WFIP000050,2969.73
Department of Health,Leicestershire Partnership NHS Trust,30/05/24,NURSE - BAND 5 - AGENCY,Coalville Snibston Ward,HCL WORKFORCE SOLUTIONS,WFIP000050,1191.38
Department of Health,Leicestershire Partnership NHS Trust,30/05/24,NURSE - BAND 2 - AGENCY,Coalville Ward 2,HCL WORKFORCE SOLUTIONS,WFIP000050,6761.58
Department of Health,Leicestershire Partnership NHS Trust,30/05/24,NURSE - BAND 5 - AGENCY,Coalville Ward 2,HCL WORKFORCE SOLUTIONS,WFIP000050,1841.85
Department of Health,Leicestershire Partnership NHS Trust,30/05/24,NURSE - BAND 2 - AGENCY,Coalville Ward 4,HCL WORKFORCE SOLUTIONS,WFIP000050,1406.84
Department of Health,Leicestershire Partnership NHS Trust,30/05/24,NURSE - BAND 5 - AGENCY,Coalville Ward 4,HCL WORKFORCE SOLUTIONS,WFIP000050,4775.47
Department of Health,Leicestershire Partnership NHS Trust,30/05/24,NURSE - BAND 2 - AGENCY,Dalgliesh Ward,HCL WORKFORCE SOLUTIONS,WFIP000050,9585.02
Department of Health,Leicestershire Partnership NHS Trust,30/05/24,NURSE - BAND 5 - AGENCY,Dalgliesh Ward,HCL WORKFORCE SOLUTIONS,WFIP000050,2112.31
Department of Health,Leicestershire Partnership NHS Trust,30/05/24,NURSE - BAND 5 - AGENCY,East Planned Care - Blaby/Lutterworth,HCL WORKFORCE SOLUTIONS,WFIP000050,1715.28
Department of Health,Leicestershire Partnership NHS Trust,30/05/24,NURSE - BAND 5 - AGENCY,"East Planned Care - Melton,Syston,Rutland",HCL WORKFORCE SOLUTIONS,WFIP000050,6308.10
Department of Health,Leicestershire Partnership NHS Trust,30/05/24,NURSE - BAND 5 - AGENCY,"East Planned Care - Oadby,Wigston & Harborough",HCL WORKFORCE SOLUTIONS,WFIP000050,10956.17
Department of Health,Leicestershire Partnership NHS Trust,30/05/24,NURSE - BAND 2 - AGENCY,H&B Comm Hosp East Ward,HCL WORKFORCE SOLUTIONS,WFIP000050,7799.17
Department of Health,Leicestershire Partnership NHS Trust,30/05/24,NURSE - BAND 5 - AGENCY,H&B Comm Hosp East Ward,HCL WORKFORCE SOLUTIONS,WFIP000050,4237.07
Department of Health,Leicestershire Partnership NHS Trust,30/05/24,NURSE - BAND 2 - AGENCY,H&B Comm Hosp North Ward,HCL WORKFORCE SOLUTIONS,WFIP000050,1390.16
Department of Health,Leicestershire Partnership NHS Trust,30/05/24,NURSE - BAND 5 - AGENCY,H&B Comm Hosp North Ward,HCL WORKFORCE SOLUTIONS,WFIP000050,740.83
Department of Health,Leicestershire Partnership NHS Trust,30/05/24,NURSE - BAND 2 - AGENCY,Lough Swithland Ward,HCL WORKFORCE SOLUTIONS,WFIP000050,1853.07
Department of Health,Leicestershire Partnership NHS Trust,30/05/24,NURSE - BAND 5 - AGENCY,Lough Swithland Ward,HCL WORKFORCE SOLUTIONS,WFIP000050,1400.21
Department of Health,Leicestershire Partnership NHS Trust,30/05/24,NURSE - BAND 2 - AGENCY,Loughborough Charnwood Ward,HCL WORKFORCE SOLUTIONS,WFIP000050,3650.09
Department of Health,Leicestershire Partnership NHS Trust,30/05/24,NURSE - BAND 5 - AGENCY,Loughborough Charnwood Ward,HCL WORKFORCE SOLUTIONS,WFIP000050,3015.87
Department of Health,Leicestershire Partnership NHS Trust,30/05/24,NURSE - BAND 5 - AGENCY,Non Recurrent 2012/13,HCL WORKFORCE SOLUTIONS,WFIP000050,771.67
Department of Health,Leicestershire Partnership NHS Trust,30/05/24,NURSE - BAND 2 - AGENCY,Rutland Ward Nursing,HCL WORKFORCE SOLUTIONS,WFIP000050,9748.81
Department of Health,Leicestershire Partnership NHS Trust,30/05/24,NURSE - BAND 5 - AGENCY,Rutland Ward Nursing,HCL WORKFORCE SOLUTIONS,WFIP000050,1616.68
Department of Health,Leicestershire Partnership NHS Trust,30/05/24,NURSE - BAND 2 - AGENCY,St Lukes Stroke Ward,HCL WORKFORCE SOLUTIONS,WFIP000050,3358.05
Department of Health,Leicestershire Partnership NHS Trust,30/05/24,NURSE - BAND 5 - AGENCY,St Lukes Stroke Ward,HCL WORKFORCE SOLUTIONS,WFIP000050,2890.09
Department of Health,Leicestershire Partnership NHS Trust,30/05/24,NURSE - BAND 2 - AGENCY,St Lukes Ward 3,HCL WORKFORCE SOLUTIONS,WFIP000050,3337.00
Department of Health,Leicestershire Partnership NHS Trust,30/05/24,NURSE - BAND 5 - AGENCY,St Lukes Ward 3,HCL WORKFORCE SOLUTIONS,WFIP000050,1761.87
Department of Health,Leicestershire Partnership NHS Trust,30/05/24,NURSE - BAND 5 - AGENCY,West Planned Care  - Charnwood Hub,HCL WORKFORCE SOLUTIONS,WFIP000050,16449.16
Department of Health,Leicestershire Partnership NHS Trust,30/05/24,NURSE - BAND 5 - AGENCY,West Planned Care  - Hinckley Hub,HCL WORKFORCE SOLUTIONS,WFIP000050,15292.25
